Workbook

Sheet Results Overview
A1: Hull School Games SportsHall Athletics Qualifier 3 Results
A3: Year 3/4 Results
A4: School | B4: Field | C4: Track | D4: Total | E4: Position
A5: Christopher Pickering | B5: ='Y34 Field'!X7+'Y34 Field'!X43 -> 287 | C5: ='Y34 Track'!O5+'Y34 Track'!O20 -> 126 | D5: =B5+C5 -> 413 | E5: 1
A6: Ings | B6: ='Y34 Field'!X16+'Y34 Field'!X52 -> 265 | C6: ='Y34 Track'!O8+'Y34 Track'!O23 -> 204 | D6: =B6+C6 -> 469 | E6: 2
A7: Sidmouth | B7: ='Y34 Field'!X25+'Y34 Field'!X61 -> 263 | C7: ='Y34 Track'!O11+'Y34 Track'!O26 -> 252 | D7: =B7+C7 -> 515 | E7: 3
A8: Neasden | B8: ='Y34 Field'!X22+'Y34 Field'!X58 -> 318 | C8: ='Y34 Track'!O10+'Y34 Track'!O25 -> 198 | D8: =B8+C8 -> 516 | E8: 4
A9: Francis Aksew | B9: ='Y34 Field'!X13+'Y34 Field'!X49 -> 376 | C9: ='Y34 Track'!O7+'Y34 Track'!O22 -> 198 | D9: =B9+C9 -> 574 | E9: 5
A10: Woodlands | B10: ='Y34 Field'!X34+'Y34 Field'!X70 -> 357 | C10: ='Y34 Track'!O14+'Y34 Track'!O29 -> 282 | D10: =B10+C10 -> 639 | E10: 6
A11: Mersey Academy | B11: ='Y34 Field'!X19+'Y34 Field'!X55 -> 412 | C11: ='Y34 Track'!O9+'Y34 Track'!O24 -> 318 | D11: =B11+C11 -> 730 | E11: 7
A12: Clifton Primary | B12: ='Y34 Field'!X10+'Y34 Field'!X46 -> 480 | C12: ='Y34 Track'!O6+'Y34 Track'!O21 -> 204 | D12: =B12+C12 -> 684 | E12: 8
A13: St Charles | B13: ='Y34 Field'!X28+'Y34 Field'!X64 -> 415 | C13: ='Y34 Track'!O12+'Y34 Track'!O27 -> 366 | D13: =B13+C13 -> 781 | E13: 9
A14: St Nicholas | B14: ='Y34 Field'!X31+'Y34 Field'!X67 -> 454 | C14: ='Y34 Track'!O13+'Y34 Track'!O28 -> 378 | D14: =B14+C14 -> 832 | E14: 10
A16: Year 5/6 Results
A17: School | B17: Field | C17: Track | D17: Total | E17: Position
A18: Christopher Pickering | B18: ='Y56 Field'!X7+'Y56 Field'!X37 -> 235 | C18: ='Y56 Track'!O5+'Y56 Track'!O18 -> 156 | D18: =B18+C18 -> 391 | E18: 1
A19: Sidmouth | B19: ='Y56 Field'!X19+'Y56 Field'!X49 -> 277 | C19: ='Y56 Track'!O9+'Y56 Track'!O22 -> 126 | D19: =B19+C19 -> 403 | E19: 2
A20: Neasden | B20: ='Y56 Field'!X16+'Y56 Field'!X46 -> 274 | C20: ='Y56 Track'!O8+'Y56 Track'!O21 -> 180 | D20: =B20+C20 -> 454 | E20: 3
A21: Ings | B21: ='Y56 Field'!X13+'Y56 Field'!X43 -> 316 | C21: ='Y56 Track'!O7+'Y56 Track'!O20 -> 138 | D21: =B21+C21 -> 454 | E21: 4
A22: St Charles | B22: ='Y56 Field'!X22+'Y56 Field'!X52 -> 352 | C22: ='Y56 Track'!O10+'Y56 Track'!O23 -> 210 | D22: =B22+C22 -> 562 | E22: 5
A23: Woodlands | B23: ='Y56 Field'!X28+'Y56 Field'!X58 -> 320 | C23: ='Y56 Track'!O12+'Y56 Track'!O25 -> 276 | D23: =B23+C23 -> 596 | E23: 6
A24: Clifton Primary | B24: ='Y56 Field'!X10+'Y56 Field'!X40 -> 381 | C24: ='Y56 Track'!O6+'Y56 Track'!O19 -> 258 | D24: =B24+C24 -> 639 | E24: 7
A25: St Nicholas | B25: ='Y56 Field'!X25+'Y56 Field'!X55 -> 439 | C25: ='Y56 Track'!O11+'Y56 Track'!O24 -> 258 | D25: =B25+C25 -> 697 | E25: 8

Sheet Y34 Field
A1: Hull School Games SportsHall Athletics Qualifier 3 Results
A2: Year 3/4 Boys Field
B3: Javelin | F3: Standing Long Jump | J3: 5 Strides | N3: Chest Push | R3: Speed Bouce | W3: School Total Points
A4: School | B4: Average | C4: Attempt 1 | D4: Attempt 2 | E4: Score | F4: Average | G4: Attempt 1 | H4: Attempt 2 | I4: Score | J4: Average | K4: Attempt 1 | L4: Attempt 2 | M4: Score | N4: Average | O4: Attempt 1 | P4: Attempt 2 | Q4: Score | R4: Average | S4: Attempt 1 | T4: Attempt 2 | U4: Score
A5: Christopher Pickering | B5: =AVERAGE(C5,D5) -> 10.365 | C5: 10.45 | D5: 10.28 | E5: 6 | F5: =AVERAGE(G5,H5) -> 1.675 | G5: 1.6 | H5: 1.75 | I5: 4 | J5: =AVERAGE(K5,L5) -> 5.765 | K5: 6 | L5: 5.53 | M5: 8 | N5: =AVERAGE(O5,P5) -> 6.55 | O5: 6.4 | P5: 6.7 | Q5: 1 | R5: =AVERAGE(S5,T5) -> 27.5 | S5: 36 | T5: 19 | U5: 6 | W5: =SUM(E5,I5,M5,Q5,U5) -> 25
A6: Christopher Pickering | B6: =AVERAGE(C6,D6) -> 8.955 | C6: 8.79 | D6: 9.12 | E6: 10 | F6: =AVERAGE(G6,H6) -> 1.65 | G6: 1.8 | H6: 1.5 | I6: 5 | J6: =AVERAGE(K6,L6) -> 5 | K6: 4.8 | L6: 5.2 | M6: 19 | N6: =AVERAGE(O6,P6) -> 5.9 | O6: 6.7 | P6: 5.1 | Q6: 4 | R6: =AVERAGE(S6,T6) -> 27 | S6: 27 | T6: 27 | U6: 7 | W6: =SUM(E6,I6,M6,Q6,U6) -> 45
A7: Christopher Pickering | B7: =AVERAGE(C7,D7) -> 7.345 | C7: 8.33 | D7: 6.36 | E7: 16 | F7: =AVERAGE(G7,H7) -> 1.525 | G7: 1.75 | H7: 1.3 | I7: 8 | J7: =AVERAGE(K7,L7) -> 4.65 | K7: 4.7 | L7: 4.6 | M7: 21 | N7: =AVERAGE(O7,P7) -> 5.65 | O7: 5.6 | P7: 5.7 | Q7: 5 | R7: =AVERAGE(S7,T7) -> 26 | S7: 28 | T7: 24 | U7: 9 | W7: 59 | X7: =SUM(W5:W7) -> 129
A8: Clifton Primary | B8: =AVERAGE(C8,D8) -> 7.7 | C8: 7.8 | D8: 7.6 | E8: 13 | F8: =AVERAGE(G8,H8) -> 1.55 | G8: 1.5 | H8: 1.6 | I8: 7 | J8: =AVERAGE(K8,L8) -> 5.5 | K8: 5.6 | L8: 5.4 | M8: 11 | N8: =AVERAGE(O8,P8) -> 3.575 | O8: 3.9 | P8: 3.25 | Q8: 20 | R8: =AVERAGE(S8,T8) -> 34 | S8: 35 | T8: 33 | U8: 3 | W8: 54
A9: Clifton Primary | B9: =AVERAGE(C9,D9) -> 5.87 | C9: 6.52 | D9: 5.22 | E9: 23 | F9: =AVERAGE(G9,H9) -> 1.55 | G9: 1.6 | H9: 1.5 | I9: 7 | J9: =AVERAGE(K9,L9) -> 5.285 | K9: 5.64 | L9: 4.93 | M9: 15 | N9: =AVERAGE(O9,P9) -> 3.35 | O9: 3.3 | P9: 3.4 | Q9: 22 | R9: =AVERAGE(S9,T9) -> 24.5 | S9: 27 | T9: 22 | U9: 11 | W9: 78
A10: Clifton Primary | B10: =AVERAGE(C10,D10) -> 2.16 | C10: 2.2 | D10: 2.12 | E10: 30 | F10: =AVERAGE(G10,H10) -> 1.425 | G10: 1.5 | H10: 1.35 | I10: 11 | J10: =AVERAGE(K10,L10) -> 5.28 | K10: 5.24 | L10: 5.32 | M10: 16 | N10: =AVERAGE(O10,P10) -> 3.2 | O10: 3.1 | P10: 3.3 | Q10: 24 | R10: =AVERAGE(S10,T10) -> 20.5 | S10: 23 | T10: 18 | U10: 16 | W10: 97 | X10: =SUM(W8:W10) -> 229
A11: Francis Askew | B11: =AVERAGE(C11,D11) -> 7.025 | C11: 7.53 | D11: 6.52 | E11: 17 | F11: =AVERAGE(G11,H11) -> 1.75 | G11: 1.7 | H11: 1.8 | I11: 2 | J11: =AVERAGE(K11,L11) -> 5.35 | K11: 5.4 | L11: 5.3 | M11: 12 | N11: =AVERAGE(O11,P11) -> 4.9 | O11: 4.7 | P11: 5.1 | Q11: 10 | R11: =AVERAGE(S11,T11) -> 38.5 | S11: 42 | T11: 35 | U11: 1 | W11: 42
A12: Francis Askew | B12: =AVERAGE(C12,D12) -> 6.565 | C12: 6.11 | D12: 7.02 | E12: 20 | F12: =AVERAGE(G12,H12) -> 1.45 | G12: 1.4 | H12: 1.5 | I12: 10 | J12: =AVERAGE(K12,L12) -> 5.34 | K12: 5.4 | L12: 5.28 | M12: 13 | N12: =AVERAGE(O12,P12) -> 4.75 | O12: 4.5 | P12: 5 | Q12: 11 | R12: =AVERAGE(S12,T12) -> 25.5 | S12: 27 | T12: 24 | U12: 10 | W12: 64
A13: Francis Askew | B13: =AVERAGE(C13,D13) -> 6.475 | C13: 6.2 | D13: 6.75 | E13: 21 | F13: =AVERAGE(G13,H13) -> 1.275 | G13: 1.3 | H13: 1.25 | I13: 15 | J13: =AVERAGE(K13,L13) -> 4.06 | K13: 4.12 | L13: 4 | M13: 26 | N13: =AVERAGE(O13,P13) -> 3.75 | O13: 3.7 | P13: 3.8 | Q13: 17 | R13: =AVERAGE(S13,T13) -> 15.5 | S13: 17 | T13: 14 | U13: 18 | W13: 97 | X13: =SUM(W11:W13) -> 203
A14: Ings Primary | B14: =AVERAGE(C14,D14) -> 11.18 | C14: 13.53 | D14: 8.83 | E14: 3 | F14: =AVERAGE(G14,H14) -> 1.65 | G14: 1.65 | H14: 1.65 | I14: 5 | J14: =AVERAGE(K14,L14) -> 5.91 | K14: 6.7 | L14: 5.12 | M14: 5 | N14: =AVERAGE(O14,P14) -> 5.2 | O14: 4.9 | P14: 5.5 | Q14: 8 | R14: =AVERAGE(S14,T14) -> 25.5 | S14: 29 | T14: 22 | U14: 10 | W14: 31
A15: Ings Primary | B15: =AVERAGE(C15,D15) -> 10.08 | C15: 5.11 | D15: 15.05 | E15: 7 | F15: =AVERAGE(G15,H15) -> 1.525 | G15: 1.5 | H15: 1.55 | I15: 8 | J15: =AVERAGE(K15,L15) -> 5.81 | K15: 6.05 | L15: 5.57 | M15: 6 | N15: =AVERAGE(O15,P15) -> 5.2 | O15: 5.1 | P15: 5.3 | Q15: 8 | R15: =AVERAGE(S15,T15) -> 23.5 | S15: 27 | T15: 20 | U15: 12 | W15: 41
A16: Ings Primary | B16: =AVERAGE(C16,D16) -> 9.85 | C16: 10.67 | D16: 9.03 | E16: 8 | F16: =AVERAGE(G16,H16) -> 1.5 | G16: 1.5 | H16: 1.5 | I16: 9 | J16: =AVERAGE(K16,L16) -> 5.775 | K16: 6.3 | L16: 5.25 | M16: 7 | N16: =AVERAGE(O16,P16) -> 4.4 | O16: 4.3 | P16: 4.5 | Q16: 13 | R16: =AVERAGE(S16,T16) -> 21.5 | S16: 22 | T16: 21 | U16: 14 | W16: 51 | X16: =SUM(W14:W16) -> 123
A17: Mersey Primary | B17: =AVERAGE(C17,D17) -> 7.735 | C17: 7.71 | D17: 7.76 | E17: 12 | F17: =AVERAGE(G17,H17) -> 1.75 | G17: 1.7 | H17: 1.8 | I17: 2 | J17: =AVERAGE(K17,L17) -> 4.32 | K17: 4.64 | L17: 4 | M17: 23 | N17: =AVERAGE(O17,P17) -> 4.35 | O17: 4.1 | P17: 4.6 | Q17: 14 | R17: =AVERAGE(S17,T17) -> 26.5 | S17: 30 | T17: 23 | U17: 8 | W17: 59
A18: Mersey Primary | B18: =AVERAGE(C18,D18) -> 7.47 | C18: 5.62 | D18: 9.32 | E18: 15 | F18: =AVERAGE(G18,H18) -> 1.4 | G18: 1.4 | H18: 1.4 | I18: 12 | J18: =AVERAGE(K18,L18) -> 4.2 | K18: 4.3 | L18: 4.1 | M18: 25 | N18: =AVERAGE(O18,P18) -> 3.25 | O18: 3.2 | P18: 3.3 | Q18: 23 | R18: =AVERAGE(S18,T18) -> 25.5 | S18: 29 | T18: 22 | U18: 10 | W18: 85
A19: Mersey Primary | B19: =AVERAGE(C19,D19) -> 6.83 | C19: 5.81 | D19: 7.85 | E19: 18 | F19: =AVERAGE(G19,H19) -> 1.375 | G19: 1.4 | H19: 1.35 | I19: 13 | J19: =AVERAGE(K19,L19) -> 3.935 | K19: 4 | L19: 3.87 | M19: 27 | N19: =AVERAGE(O19,P19) -> 2.6 | O19: 3.1 | P19: 2.1 | Q19: 25 | R19: =AVERAGE(S19,T19) -> 21 | S19: 22 | T19: 20 | U19: 15 | W19: 98 | X19: =SUM(W17:W19) -> 242
A20: Neasden Primary | B20: =AVERAGE(C20,D20) -> 11.23 | C20: 11.24 | D20: 11.22 | E20: 2 | F20: =AVERAGE(G20,H20) -> 1.725 | G20: 1.65 | H20: 1.8 | I20: 3 | J20: =AVERAGE(K20,L20) -> 6.445 | K20: 6.09 | L20: 6.8 | M20: 2 | N20: =AVERAGE(O20,P20) -> 5.35 | O20: 5.8 | P20: 4.9 | Q20: 7 | R20: =AVERAGE(S20,T20) -> 27 | S20: 29 | T20: 25 | U20: 7 | W20: 21
A21: Neasden Primary | B21: =AVERAGE(C21,D21) -> 5.095 | C21: 1.7 | D21: 8.49 | E21: 25 | F21: =AVERAGE(G21,H21) -> 1.625 | G21: 1.5 | H21: 1.75 | I21: 6 | J21: =AVERAGE(K21,L21) -> 6.26 | K21: 5.9 | L21: 6.62 | M21: 3 | N21: =AVERAGE(O21,P21) -> 4.75 | O21: 5.6 | P21: 3.9 | Q21: 11 | R21: =AVERAGE(S21,T21) -> 26 | S21: 26 | T21: 26 | U21: 9 | W21: 54
A22: Neasden Primary | B22: =AVERAGE(C22,D22) -> 3.8 | C22: 3.84 | D22: 3.76 | E22: 28 | F22: =AVERAGE(G22,H22) -> 1.4 | G22: 1.3 | H22: 1.5 | I22: 12 | J22: =AVERAGE(K22,L22) -> 5.75 | K22: 6 | L22: 5.5 | M22: 9 | N22: =AVERAGE(O22,P22) -> 2.45 | O22: 1.5 | P22: 3.4 | Q22: 26 | R22: =AVERAGE(S22,T22) -> 19 | S22: 22 | T22: 16 | U22: 17 | W22: 92 | X22: =SUM(W20:W22) -> 167
A23: Sidmouth Primary | B23: =AVERAGE(C23,D23) -> 11.325 | C23: 11.2 | D23: 11.45 | E23: 1 | F23: =AVERAGE(G23,H23) -> 1.65 | G23: 1.6 | H23: 1.7 | I23: 5 | J23: =AVERAGE(K23,L23) -> 6.55 | K23: 6.6 | L23: 6.5 | M23: 1 | N23: =AVERAGE(O23,P23) -> 5.45 | O23: 5.4 | P23: 5.5 | Q23: 6 | R23: =AVERAGE(S23,T23) -> 33 | S23: 39 | T23: 27 | U23: 4 | W23: 17
A24: Sidmouth Primary | B24: =AVERAGE(C24,D24) -> 10.62 | C24: 9.94 | D24: 11.3 | E24: 4 | F24: =AVERAGE(G24,H24) -> 1.625 | G24: 1.6 | H24: 1.65 | I24: 6 | J24: =AVERAGE(K24,L24) -> 5.95 | K24: 6.4 | L24: 5.5 | M24: 4 | N24: =AVERAGE(O24,P24) -> 4.25 | O24: 4.6 | P24: 3.9 | Q24: 15 | R24: =AVERAGE(S24,T24) -> 27 | S24: 33 | T24: 21 | U24: 7 | W24: 36
A25: Sidmouth Primary | B25: =AVERAGE(C25,D25) -> 9.26 | C25: 8.96 | D25: 9.56 | E25: 9 | F25: =AVERAGE(G25,H25) -> 1.525 | G25: 1.5 | H25: 1.55 | I25: 8 | J25: =AVERAGE(K25,L25) -> 5.215 | K25: 5.36 | L25: 5.07 | M25: 17 | N25: =AVERAGE(O25,P25) -> 3.55 | O25: 3.1 | P25: 4 | Q25: 21 | R25: =AVERAGE(S25,T25) -> 22.5 | S25: 26 | T25: 19 | U25: 13 | W25: 68 | X25: =SUM(W23:W25) -> 121
A26: St Charles Primary | B26: =AVERAGE(C26,D26) -> 8.47 | C26: 8.96 | D26: 7.98 | E26: 11 | F26: =AVERAGE(G26,H26) -> 1.65 | G26: 1.6 | H26: 1.7 | I26: 5 | J26: =AVERAGE(K26,L26) -> 4.68 | K26: 4.76 | L26: 4.6 | M26: 20 | N26: =AVERAGE(O26,P26) -> 4.4 | O26: 4.1 | P26: 4.7 | Q26: 13 | R26: =AVERAGE(S26,T26) -> 36 | S26: 39 | T26: 33 | U26: 2 | W26: 51
A27: St Charles Primary | B27: =AVERAGE(C27,D27) -> 6.635 | C27: 6.34 | D27: 6.93 | E27: 19 | F27: =AVERAGE(G27,H27) -> 1.55 | G27: 1.5 | H27: 1.6 | I27: 7 | J27: =AVERAGE(K27,L27) -> 4.645 | K27: 4.6 | L27: 4.69 | M27: 21 | N27: =AVERAGE(O27,P27) -> 4.225 | O27: 3.95 | P27: 4.5 | Q27: 16 | R27: =AVERAGE(S27,T27) -> 22.5 | S27: 14 | T27: 31 | U27: 13 | W27: 76
A28: St Charles Primary | B28: =AVERAGE(C28,D28) -> 5.335 | C28: 4.94 | D28: 5.73 | E28: 24 | F28: =AVERAGE(G28,H28) -> 1.35 | G28: 1.4 | H28: 1.3 | I28: 14 | J28: =AVERAGE(K28,L28) -> 4.285 | K28: 4.07 | L28: 4.5 | M28: 24 | N28: =AVERAGE(O28,P28) -> 3.7 | O28: 3.7 | P28: 3.7 | Q28: 18 | R28: =AVERAGE(S28,T28) -> 13.5 | S28: 15 | T28: 12 | U28: 20 | W28: 100 | X28: =SUM(W26:W28) -> 227
A29: St Nicholas Primary | B29: =AVERAGE(C29,D29) -> 10.51 | C29: 10.1 | D29: 10.92 | E29: 5 | F29: =AVERAGE(G29,H29) -> 1.45 | G29: 1.4 | H29: 1.5 | I29: 10 | J29: =AVERAGE(K29,L29) -> 5.65 | K29: 5.6 | L29: 5.7 | M29: 10 | N29: =AVERAGE(O29,P29) -> 6.15 | O29: 6.6 | P29: 5.7 | Q29: 2 | R29: =AVERAGE(S29,T29) -> 19 | S29: 23 | T29: 15 | U29: 17 | W29: 44
A30: St Nicholas Primary | B30: =AVERAGE(C30,D30) -> 6.42 | C30: 6.22 | D30: 6.62 | E30: 22 | F30: =AVERAGE(G30,H30) -> 1.4 | G30: 1.3 | H30: 1.5 | I30: 12 | J30: =AVERAGE(K30,L30) -> 4.32 | K30: 4.2 | L30: 4.44 | M30: 23 | N30: =AVERAGE(O30,P30) -> 4.25 | O30: 3.9 | P30: 4.6 | Q30: 15 | R30: =AVERAGE(S30,T30) -> 15.5 | S30: 16 | T30: 15 | U30: 18 | W30: 90
A31: St Nicholas Primary | B31: =AVERAGE(C31,D31) -> 3.37 | C31: 2.21 | D31: 4.53 | E31: 29 | F31: =AVERAGE(G31,H31) -> 1.35 | G31: 1.5 | H31: 1.2 | I31: 14 | J31: =AVERAGE(K31,L31) -> 4.2 | K31: 4.3 | L31: 4.1 | M31: 25 | N31: =AVERAGE(O31,P31) -> 3.65 | O31: 4.1 | P31: 3.2 | Q31: 19 | R31: =AVERAGE(S31,T31) -> 14.5 | S31: 17 | T31: 12 | U31: 19 | W31: 106 | X31: =SUM(W29:W31) -> 240
A32: Woodlands Primary | B32: =AVERAGE(C32,D32) -> 7.57 | C32: 6.64 | D32: 8.5 | E32: 14 | F32: =AVERAGE(G32,H32) -> 1.825 | G32: 1.8 | H32: 1.85 | I32: 1 | J32: =AVERAGE(K32,L32) -> 5.3 | K32: 5.1 | L32: 5.5 | M32: 14 | N32: =AVERAGE(O32,P32) -> 6.05 | O32: 6 | P32: 6.1 | Q32: 3 | R32: =AVERAGE(S32,T32) -> 28 | S32: 39 | T32: 17 | U32: 5 | W32: 37
A33: Woodlands Primary | B33: =AVERAGE(C33,D33) -> 4.87 | C33: 4.31 | D33: 5.43 | E33: 26 | F33: =AVERAGE(G33,H33) -> 1.725 | G33: 1.65 | H33: 1.8 | I33: 3 | J33: =AVERAGE(K33,L33) -> 5.12 | K33: 5.24 | L33: 5 | M33: 18 | N33: =AVERAGE(O33,P33) -> 5 | O33: 4.7 | P33: 5.3 | Q33: 9 | R33: =AVERAGE(S33,T33) -> 24.5 | S33: 30 | T33: 19 | U33: 11 | W33: 67
A34: Woodlands Primary | B34: =AVERAGE(C34,D34) -> 4.105 | C34: 2.85 | D34: 5.36 | E34: 27 | F34: =AVERAGE(G34,H34) -> 1.55 | G34: 1.5 | H34: 1.6 | I34: 7 | J34: =AVERAGE(K34,L34) -> 4.615 | K34: 4.41 | L34: 4.82 | M34: 22 | N34: =AVERAGE(O34,P34) -> 4.5 | O34: 4.5 | P34: 4.5 | Q34: 12 | R34: =AVERAGE(S34,T34) -> 23.5 | S34: 30 | T34: 17 | U34: 12 | W34: 80 | X34: =SUM(W32:W34) -> 184
A37: Hull School Games SportsHall Athletics Qualifier 3 Results
A38: Year 3/4 Girls Field
B39: Javelin | F39: Standing Long Jump | J39: 5 Strides | N39: Chest Push | R39: Speed Bouce | W39: School Total Points
A40: School | B40: Attempt 1 | C40: Attempt 2 | D40: Average | E40: Score | F40: Attempt 1 | G40: Attempt 2 | H40: Average | I40: Score | J40: Attempt 1 | K40: Attempt 2 | L40: Average | M40: Score | N40: Attempt 1 | O40: Attempt 2 | P40: Average | Q40: Score | R40: Attempt 1 | S40: Attempt 2 | T40: Average | U40: Score
A41: Christopher Pickering | B41: 6.47 | C41: 8.09 | D41: =AVERAGE(B41,C41) -> 7.28 | E41: 6 | F41: 1.35 | G41: 1.3 | H41: =AVERAGE(F41:G41) -> 1.325 | I41: 10 | J41: 6.1 | K41: 6.34 | L41: =AVERAGE(J41:K41) -> 6.22 | M41: 4 | N41: 4.9 | O41: 4.9 | P41: =AVERAGE(N41:O41) -> 4.9 | Q41: 2 | R41: 24 | S41: 26 | T41: =AVERAGE(R41:S41) -> 25 | U41: 8 | W41: =SUM(E41,I41,M41,Q41,U41) -> 30
A42: Christopher Pickering | B42: 6.29 | C42: 6.94 | D42: =AVERAGE(B42,C42) -> 6.615 | E42: 7 | F42: 1.2 | G42: 1.3 | H42: =AVERAGE(F42:G42) -> 1.25 | I42: 13 | J42: 5.3 | K42: 5.41 | L42: =AVERAGE(J42:K42) -> 5.355 | M42: 10 | N42: 3.4 | O42: 4.3 | P42: =AVERAGE(N42:O42) -> 3.85 | Q42: 10 | R42: 22 | S42: 24 | T42: =AVERAGE(R42:S42) -> 23 | U42: 9 | W42: =SUM(E42,I42,M42,Q42,U42) -> 49
A43: Christopher Pickering | B43: 3.01 | C43: 5 | D43: =AVERAGE(B43,C43) -> 4.005 | E43: 19 | F43: 1.1 | G43: 1.2 | H43: =AVERAGE(F43:G43) -> 1.15 | I43: 14 | J43: 4.8 | K43: 4.65 | L43: =AVERAGE(J43:K43) -> 4.725 | M43: 17 | N43: 2.8 | O43: 4.2 | P43: =AVERAGE(N43:O43) -> 3.5 | Q43: 16 | R43: 18 | S43: 20 | T43: =AVERAGE(R43:S43) -> 19 | U43: 13 | W43: =SUM(E43,I43,M43,Q43,U43) -> 79 | X43: =SUM(W41:W43) -> 158
A44: Clifton Primary | B44: 4.63 | C44: 3.94 | D44: =AVERAGE(B44,C44) -> 4.285 | E44: 17 | F44: 1.4 | G44: 1.4 | H44: =AVERAGE(F44:G44) -> 1.4 | I44: 6 | J44: 4.7 | K44: 5.92 | L44: =AVERAGE(J44:K44) -> 5.31 | M44: 11 | N44: 3.2 | O44: 3.7 | P44: =AVERAGE(N44:O44) -> 3.45 | Q44: 17 | R44: 32 | S44: 26 | T44: =AVERAGE(R44:S44) -> 29 | U44: 4 | W44: =SUM(E44,I44,M44,Q44,U44) -> 55
A45: Clifton Primary | B45: 1.38 | C45: 2.96 | D45: =AVERAGE(B45,C45) -> 2.17 | E45: 29 | F45: 1.2 | G45: 1 | H45: =AVERAGE(F45:G45) -> 1.1 | I45: 16 | J45: 4.38 | K45: 4.35 | L45: =AVERAGE(J45:K45) -> 4.365 | M45: 23 | N45: 3.2 | O45: 3.5 | P45: =AVERAGE(N45:O45) -> 3.35 | Q45: 18 | R45: 26 | S45: 27 | T45: =AVERAGE(R45:S45) -> 26.5 | U45: 6 | W45: =SUM(E45,I45,M45,Q45,U45) -> 92
A46: Clifton Primary | B46: 1.9 | C46: 2.08 | D46: =AVERAGE(B46,C46) -> 1.99 | E46: 30 | F46: 1.14 | G46: 1.05 | H46: =AVERAGE(F46:G46) -> 1.095 | I46: 16 | J46: 3.8 | K46: 3.67 | L46: =AVERAGE(J46:K46) -> 3.735 | M46: 30 | N46: 3.4 | O46: 3.3 | P46: =AVERAGE(N46:O46) -> 3.35 | Q46: 18 | R46: 22 | S46: 22 | T46: =AVERAGE(R46:S46) -> 22 | U46: 10 | W46: =SUM(E46,I46,M46,Q46,U46) -> 104 | X46: =SUM(W44:W46) -> 251
A47: Francis Askew | B47: 4.24 | C47: 5.63 | D47: =AVERAGE(B47,C47) -> 4.935 | E47: 12 | F47: 1.5 | G47: 1.55 | H47: =AVERAGE(F47:G47) -> 1.525 | I47: 3 | J47: 4.91 | K47: 5.11 | L47: =AVERAGE(J47:K47) -> 5.01 | M47: 14 | N47: 5.1 | O47: 4.6 | P47: =AVERAGE(N47:O47) -> 4.85 | Q47: 3 | R47: 34 | S47: 29 | T47: =AVERAGE(R47:S47) -> 31.5 | U47: 2 | W47: =SUM(E47,I47,M47,Q47,U47) -> 34
A48: Francis Askew | B48: 4.69 | C48: 4.58 | D48: =AVERAGE(B48,C48) -> 4.635 | E48: 15 | F48: 1.2 | G48: 1.5 | H48: =AVERAGE(F48:G48) -> 1.35 | I48: 9 | J48: 3.8 | K48: 4.45 | L48: =AVERAGE(J48:K48) -> 4.125 | M48: 26 | N48: 4.2 | O48: 4.5 | P48: =AVERAGE(N48:O48) -> 4.35 | Q48: 4 | R48: 36 | S48: 24 | T48: =AVERAGE(R48:S48) -> 30 | U48: 3 | W48: =SUM(E48,I48,M48,Q48,U48) -> 57
A49: Francis Askew | B49: 3.12 | C49: 4.22 | D49: =AVERAGE(B49,C49) -> 3.67 | E49: 23 | F49: 1.1 | G49: 1.1 | H49: =AVERAGE(F49:G49) -> 1.1 | I49: 16 | J49: 3.06 | K49: 5.03 | L49: =AVERAGE(J49:K49) -> 4.045 | M49: 28 | N49: 3.7 | O49: 3.8 | P49: =AVERAGE(N49:O49) -> 3.75 | Q49: 12 | R49: 36 | S49: 24 | T49: =AVERAGE(R49:S49) -> 30 | U49: 3 | W49: =SUM(E49,I49,M49,Q49,U49) -> 82 | X49: =SUM(W47:W49) -> 173
A50: Ings Primary | B50: 6.47 | C50: 8.17 | D50: =AVERAGE(B50,C50) -> 7.32 | E50: 5 | F50: 1.3 | G50: 1.4 | H50: =AVERAGE(F50:G50) -> 1.35 | I50: 9 | J50: 5.63 | K50: 7.2 | L50: =AVERAGE(J50:K50) -> 6.415 | M50: 2 | N50: 4 | O50: 4.7 | P50: =AVERAGE(N50:O50) -> 4.35 | Q50: 4 | R50: 34 | S50: 23 | T50: =AVERAGE(R50:S50) -> 28.5 | U50: 4 | W50: =SUM(E50,I50,M50,Q50,U50) -> 24
A51: Ings Primary | B51: 3.78 | C51: 6.62 | D51: =AVERAGE(B51,C51) -> 5.2 | E51: 11 | F51: 1.2 | G51: 1.45 | H51: =AVERAGE(F51:G51) -> 1.325 | I51: 10 | J51: 5.25 | K51: 5.58 | L51: =AVERAGE(J51:K51) -> 5.415 | M51: 9 | N51: 3.3 | O51: 4 | P51: =AVERAGE(N51:O51) -> 3.65 | Q51: 14 | R51: 24 | S51: 25 | T51: =AVERAGE(R51:S51) -> 24.5 | U51: 8 | W51: =SUM(E51,I51,M51,Q51,U51) -> 52
A52: Ings Primary | B52: 6.32 | C52: 3.24 | D52: =AVERAGE(B52,C52) -> 4.78 | E52: 14 | F52: 1.2 | G52: 1.4 | H52: =AVERAGE(F52:G52) -> 1.3 | I52: 11 | J52: 4.49 | K52: 5.1 | L52: =AVERAGE(J52:K52) -> 4.795 | M52: 15 | N52: 3 | O52: 4.1 | P52: =AVERAGE(N52:O52) -> 3.55 | Q52: 15 | R52: 23 | S52: 18 | T52: =AVERAGE(R52:S52) -> 20.5 | U52: 11 | W52: =SUM(E52,I52,M52,Q52,U52) -> 66 | X52: =SUM(W50:W52) -> 142
A53: Mersey Primary | B53: 8.42 | C53: 8.04 | D53: =AVERAGE(B53,C53) -> 8.23 | E53: 2 | F53: 1.6 | G53: 1.58 | H53: =AVERAGE(F53:G53) -> 1.59 | I53: 2 | J53: 4.6 | K53: 4.64 | L53: =AVERAGE(J53:K53) -> 4.62 | M53: 19 | N53: 4.3 | O53: 3.9 | P53: =AVERAGE(N53:O53) -> 4.1 | Q53: 6 | R53: 37 | S53: 28 | T53: =AVERAGE(R53:S53) -> 32.5 | U53: 1 | W53: =SUM(E53,I53,M53,Q53,U53) -> 30
A54: Mersey Primary | B54: 9.41 | C54: 5.33 | D54: =AVERAGE(B54,C54) -> 7.37 | E54: 4 | F54: 1.5 | G54: 1.35 | H54: =AVERAGE(F54:G54) -> 1.425 | I54: 5 | J54: 3.67 | K54: 4.44 | L54: =AVERAGE(J54:K54) -> 4.055 | M54: 27 | N54: 3.7 | O54: 4.3 | P54: =AVERAGE(N54:O54) -> 4 | Q54: 7 | R54: 27 | S54: 22 | T54: =AVERAGE(R54:S54) -> 24.5 | U54: 8 | W54: =SUM(E54,I54,M54,Q54,U54) -> 51
A55: Mersey Primary | B55: 3.25 | C55: 2.8 | D55: =AVERAGE(B55,C55) -> 3.025 | E55: 28 | F55: 1.3 | G55: 1.5 | H55: =AVERAGE(F55:G55) -> 1.4 | I55: 6 | J55: 3.84 | K55: 4.2 | L55: =AVERAGE(J55:K55) -> 4.02 | M55: 29 | N55: 3.3 | O55: 4.1 | P55: =AVERAGE(N55:O55) -> 3.7 | Q55: 13 | R55: 20 | S55: 17 | T55: =AVERAGE(R55:S55) -> 18.5 | U55: 13 | W55: =SUM(E55,I55,M55,Q55,U55) -> 89 | X55: =SUM(W53:W55) -> 170
A56: Neasden Primary | B56: 6.63 | C56: 4.06 | D56: =AVERAGE(B56:C56) -> 5.345 | E56: 10 | F56: 1.3 | G56: 1.55 | H56: =AVERAGE(F56:G56) -> 1.425 | I56: 5 | J56: 6.1 | K56: 6.4 | L56: =AVERAGE(J56:K56) -> 6.25 | M56: 3 | N56: 4.1 | O56: 4.2 | P56: =AVERAGE(N56:O56) -> 4.15 | Q56: 5 | R56: 34 | S56: 26 | T56: =AVERAGE(R56:S56) -> 30 | U56: 3 | W56: =SUM(E56,I56,M56,Q56,U56) -> 26
A57: Neasden Primary | B57: 5.42 | C57: 4.19 | D57: =AVERAGE(B57:C57) -> 4.805 | E57: 13 | F57: 1.25 | G57: 1.3 | H57: =AVERAGE(F57:G57) -> 1.275 | I57: 12 | J57: 5.6 | K57: 6.1 | L57: =AVERAGE(J57:K57) -> 5.85 | M57: 6 | N57: 4.1 | O57: 4.2 | P57: =AVERAGE(N57:O57) -> 4.15 | Q57: 5 | R57: 22 | S57: 17 | T57: =AVERAGE(R57:S57) -> 19.5 | U57: 12 | W57: =SUM(E57,I57,M57,Q57,U57) -> 48
A58: Neasden Primary | B58: 3.82 | C58: 3.95 | D58: =AVERAGE(B58:C58) -> 3.885 | E58: 21 | F58: 1 | G58: 1.1 | H58: =AVERAGE(F58:G58) -> 1.05 | I58: 17 | J58: 4.73 | K58: 4.7 | L58: =AVERAGE(J58:K58) -> 4.715 | M58: 18 | N58: 4 | O58: 3.9 | P58: =AVERAGE(N58:O58) -> 3.95 | Q58: 8 | R58: 19 | S58: 19 | T58: =AVERAGE(R58:S58) -> 19 | U58: 13 | W58: =SUM(E58,I58,M58,Q58,U58) -> 77 | X58: =SUM(W56:W58) -> 151
A59: Sidmouth Primary | B59: 8.44 | C59: 9.04 | D59: =AVERAGE(B59:C59) -> 8.74 | E59: 1 | F59: 1.7 | G59: 1.75 | H59: =AVERAGE(F59:G59) -> 1.725 | I59: 1 | J59: 4.5 | K59: 5.53 | L59: =AVERAGE(J59:K59) -> 5.015 | M59: 13 | N59: 4.8 | O59: 5.2 | P59: =AVERAGE(N59:O59) -> 5 | Q59: 1 | R59: 34 | S59: 32 | T59: =AVERAGE(R59:S59) -> 33 | U59: 1 | W59: =SUM(E59,I59,M59,Q59,U59) -> 17
A60: Sidmouth Primary | B60: 6.64 | C60: 4.9 | D60: =AVERAGE(B60:C60) -> 5.77 | E60: 9 | F60: 1.5 | G60: 1.4 | H60: =AVERAGE(F60:G60) -> 1.45 | I60: 4 | J60: 4.5 | K60: 4.39 | L60: =AVERAGE(J60:K60) -> 4.445 | M60: 22 | N60: 3.8 | O60: 3.8 | P60: =AVERAGE(N60:O60) -> 3.8 | Q60: 11 | R60: 33 | S60: 23 | T60: =AVERAGE(R60:S60) -> 28 | U60: 5 | W60: =SUM(E60,I60,M60,Q60,U60) -> 51
A61: Sidmouth Primary | B61: 2.39 | C61: 5.59 | D61: =AVERAGE(B61:C61) -> 3.99 | E61: 20 | F61: 1.4 | G61: 1.34 | H61: =AVERAGE(F61:G61) -> 1.37 | I61: 8 | J61: 4.31 | K61: 4.3 | L61: =AVERAGE(J61:K61) -> 4.305 | M61: 24 | N61: 3.1 | O61: 4 | P61: =AVERAGE(N61:O61) -> 3.55 | Q61: 15 | R61: 33 | S61: 19 | T61: =AVERAGE(R61:S61) -> 26 | U61: 7 | W61: =SUM(E61,I61,M61,Q61,U61) -> 74 | X61: =SUM(W59:W61) -> 142
A62: St Charles Primary | B62: 7.57 | C62: 7.5 | D62: =AVERAGE(B62:C62) -> 7.535 | E62: 3 | F62: 1.2 | G62: 1.3 | H62: =AVERAGE(F62:G62) -> 1.25 | I62: 13 | J62: 6.6 | K62: 5.5 | L62: =AVERAGE(J62:K62) -> 6.05 | M62: 5 | N62: 4.4 | O62: 4.3 | P62: =AVERAGE(N62:O62) -> 4.35 | Q62: 4 | R62: 34 | S62: 22 | T62: =AVERAGE(R62:S62) -> 28 | U62: 5 | W62: =SUM(E62,I62,M62,Q62,U62) -> 30
A63: St Charles Primary | B63: 5.91 | C63: 3.12 | D63: =AVERAGE(B63:C63) -> 4.515 | E63: 16 | F63: 1.05 | G63: 1 | H63: =AVERAGE(F63:G63) -> 1.025 | I63: 18 | J63: 6.8 | K63: 4.8 | L63: =AVERAGE(J63:K63) -> 5.8 | M63: 7 | N63: 3.3 | O63: 4.7 | P63: =AVERAGE(N63:O63) -> 4 | Q63: 7 | R63: 20 | S63: 16 | T63: =AVERAGE(R63:S63) -> 18 | U63: 14 | W63: =SUM(E63,I63,M63,Q63,U63) -> 62
A64: St Charles Primary | B64: 2.12 | C64: 5.63 | D64: =AVERAGE(B64:C64) -> 3.875 | E64: 22 | F64: 0.8 | G64: 1 | H64: =AVERAGE(F64:G64) -> 0.9 | I64: 19 | J64: 4.64 | K64: 4.5 | L64: =AVERAGE(J64:K64) -> 4.57 | M64: 20 | N64: 2.6 | O64: 2.8 | P64: =AVERAGE(N64:O64) -> 2.7 | Q64: 19 | R64: 14 | S64: 13 | T64: =AVERAGE(R64:S64) -> 13.5 | U64: 16 | W64: =SUM(E64,I64,M64,Q64,U64) -> 96 | X64: =SUM(W62:W64) -> 188
A65: St Nicholas Primary | B65: 3.76 | C65: 4.55 | D65: =AVERAGE(B65:C65) -> 4.155 | E65: 18 | F65: 1.5 | G65: 1.55 | H65: =AVERAGE(F65:G65) -> 1.525 | I65: 3 | J65: 4.61 | K65: 4.9 | L65: =AVERAGE(J65:K65) -> 4.755 | M65: 16 | N65: 4.1 | O65: 4.1 | P65: =AVERAGE(N65:O65) -> 4.1 | Q65: 6 | R65: 30 | S65: 25 | T65: =AVERAGE(R65:S65) -> 27.5 | U65: 5 | W65: =SUM(E65,I65,M65,Q65,U65) -> 48
A66: St Nicholas Primary | B66: 4.42 | C66: 2.9 | D66: =AVERAGE(B66:C66) -> 3.66 | E66: 24 | F66: 1.2 | G66: 1.5 | H66: =AVERAGE(F66:G66) -> 1.35 | I66: 9 | J66: 4.25 | K66: 4.7 | L66: =AVERAGE(J66:K66) -> 4.475 | M66: 21 | N66: 3.8 | O66: 4 | P66: =AVERAGE(N66:O66) -> 3.9 | Q66: 9 | R66: 21 | S66: 16 | T66: =AVERAGE(R66:S66) -> 18.5 | U66: 13 | W66: =SUM(E66,I66,M66,Q66,U66) -> 76
A67: St Nicholas Primary | B67: 3.92 | C67: 3.15 | D67: =AVERAGE(B67:C67) -> 3.535 | E67: 25 | F67: 1 | G67: 1.25 | H67: =AVERAGE(F67:G67) -> 1.125 | I67: 15 | J67: 4.28 | K67: 4.1 | L67: =AVERAGE(J67:K67) -> 4.19 | M67: 25 | N67: 3.7 | O67: 4 | P67: =AVERAGE(N67:O67) -> 3.85 | Q67: 10 | R67: 20 | S67: 14 | T67: =AVERAGE(R67:S67) -> 17 | U67: 15 | W67: =SUM(E67,I67,M67,Q67,U67) -> 90 | X67: =SUM(W65:W67) -> 214
A68: Woodlands Primary | B68: 6.5 | C68: 5.62 | D68: =AVERAGE(B68:C68) -> 6.06 | E68: 8 | F68: 1.35 | G68: 1.4 | H68: =AVERAGE(F68:G68) -> 1.375 | I68: 7 | J68: 6.94 | K68: 6.05 | L68: =AVERAGE(J68:K68) -> 6.495 | M68: 1 | N68: 3.9 | O68: 3.8 | P68: =AVERAGE(N68:O68) -> 3.85 | Q68: 10 | R68: 33 | S68: 25 | T68: =AVERAGE(R68:S68) -> 29 | U68: 4 | W68: =SUM(E68,I68,M68,Q68,U68) -> 30
A69: Woodlands Primary | B69: 3.53 | C69: 3.06 | D69: =AVERAGE(B69:C69) -> 3.295 | E69: 26 | F69: 1.4 | G69: 1.3 | H69: =AVERAGE(F69:G69) -> 1.35 | I69: 9 | J69: 5.2 | K69: 5.7 | L69: =AVERAGE(J69:K69) -> 5.45 | M69: 8 | N69: 3.2 | O69: 4.2 | P69: =AVERAGE(N69:O69) -> 3.7 | Q69: 13 | R69: 30 | S69: 16 | T69: =AVERAGE(R69:S69) -> 23 | U69: 9 | W69: =SUM(E69,I69,M69,Q69,U69) -> 65
A70: Woodlands Primary | B70: 3.72 | C70: 2.74 | D70: =AVERAGE(B70:C70) -> 3.23 | E70: 27 | F70: 1.3 | G70: 1.2 | H70: =AVERAGE(F70:G70) -> 1.25 | I70: 13 | J70: 5.26 | K70: 4.95 | L70: =AVERAGE(J70:K70) -> 5.105 | M70: 12 | N70: 3.7 | O70: 3.2 | P70: =AVERAGE(N70:O70) -> 3.45 | Q70: 17 | R70: 26 | S70: 19 | T70: =AVERAGE(R70:S70) -> 22.5 | U70: 9 | W70: =SUM(E70,I70,M70,Q70,U70) -> 78 | X70: =SUM(W68:W70) -> 173

Sheet Y34Girls Field (hidden)
A1: Hull School Games SportsHall Athletics Qualifier 3 Results
A2: Year 3/4 Girls Field
B3: Javelin | F3: Standing Long Jump | J3: 5 Strides | N3: Chest Push | R3: Speed Bouce | W3: School Total Points
A4: School | B4: Attempt 1 | C4: Attempt 2 | D4: Average | E4: Score | F4: Attempt 1 | G4: Attempt 2 | H4: Average | I4: Score | J4: Attempt 1 | K4: Attempt 2 | L4: Average | M4: Score | N4: Attempt 1 | O4: Attempt 2 | P4: Average | Q4: Score | R4: Attempt 1 | S4: Attempt 2 | T4: Average | U4: Score
A5: Christopher Pickering | B5: 6.47 | C5: 8.09 | D5: =AVERAGE(B5,C5) -> 7.28 | E5: 6 | F5: 1.35 | G5: 1.3 | H5: =AVERAGE(F5:G5) -> 1.325 | I5: 10 | J5: 6.1 | K5: 6.34 | L5: =AVERAGE(J5:K5) -> 6.22 | M5: 4 | N5: 4.9 | O5: 4.9 | P5: =AVERAGE(N5:O5) -> 4.9 | Q5: 2 | R5: 24 | S5: 26 | T5: =AVERAGE(R5:S5) -> 25 | U5: 8 | W5: =SUM(E5,I5,M5,Q5,U5) -> 30
A6: Christopher Pickering | B6: 6.29 | C6: 6.94 | D6: =AVERAGE(B6,C6) -> 6.615 | E6: 7 | F6: 1.2 | G6: 1.3 | H6: =AVERAGE(F6:G6) -> 1.25 | I6: 13 | J6: 5.3 | K6: 5.41 | L6: =AVERAGE(J6:K6) -> 5.355 | M6: 10 | N6: 3.4 | O6: 4.3 | P6: =AVERAGE(N6:O6) -> 3.85 | Q6: 10 | R6: 22 | S6: 24 | T6: =AVERAGE(R6:S6) -> 23 | U6: 9 | W6: =SUM(E6,I6,M6,Q6,U6) -> 49
A7: Christopher Pickering | B7: 3.01 | C7: 5 | D7: =AVERAGE(B7,C7) -> 4.005 | E7: 19 | F7: 1.1 | G7: 1.2 | H7: =AVERAGE(F7:G7) -> 1.15 | I7: 14 | J7: 4.8 | K7: 4.65 | L7: =AVERAGE(J7:K7) -> 4.725 | M7: 17 | N7: 2.8 | O7: 4.2 | P7: =AVERAGE(N7:O7) -> 3.5 | Q7: 16 | R7: 18 | S7: 20 | T7: =AVERAGE(R7:S7) -> 19 | U7: 13 | W7: =SUM(E7,I7,M7,Q7,U7) -> 79 | X7: =SUM(W5:W7) -> 158
A8: Clifton Primary | B8: 4.63 | C8: 3.94 | D8: =AVERAGE(B8,C8) -> 4.285 | E8: 17 | F8: 1.4 | G8: 1.4 | H8: =AVERAGE(F8:G8) -> 1.4 | I8: 6 | J8: 4.7 | K8: 5.92 | L8: =AVERAGE(J8:K8) -> 5.31 | M8: 11 | N8: 3.2 | O8: 3.7 | P8: =AVERAGE(N8:O8) -> 3.45 | Q8: 17 | R8: 32 | S8: 26 | T8: =AVERAGE(R8:S8) -> 29 | U8: 4 | W8: =SUM(E8,I8,M8,Q8,U8) -> 55
A9: Clifton Primary | B9: 1.38 | C9: 2.96 | D9: =AVERAGE(B9,C9) -> 2.17 | E9: 29 | F9: 1.2 | G9: 1 | H9: =AVERAGE(F9:G9) -> 1.1 | I9: 16 | J9: 4.38 | K9: 4.35 | L9: =AVERAGE(J9:K9) -> 4.365 | M9: 23 | N9: 3.2 | O9: 3.5 | P9: =AVERAGE(N9:O9) -> 3.35 | Q9: 18 | R9: 26 | S9: 27 | T9: =AVERAGE(R9:S9) -> 26.5 | U9: 6 | W9: =SUM(E9,I9,M9,Q9,U9) -> 92
A10: Clifton Primary | B10: 1.9 | C10: 2.08 | D10: =AVERAGE(B10,C10) -> 1.99 | E10: 30 | F10: 1.14 | G10: 1.05 | H10: =AVERAGE(F10:G10) -> 1.095 | I10: 16 | J10: 3.8 | K10: 3.67 | L10: =AVERAGE(J10:K10) -> 3.735 | M10: 30 | N10: 3.4 | O10: 3.3 | P10: =AVERAGE(N10:O10) -> 3.35 | Q10: 18 | R10: 22 | S10: 22 | T10: =AVERAGE(R10:S10) -> 22 | U10: 10 | W10: =SUM(E10,I10,M10,Q10,U10) -> 104 | X10: =SUM(W8:W10) -> 251
A11: Francis Askew | B11: 4.24 | C11: 5.63 | D11: =AVERAGE(B11,C11) -> 4.935 | E11: 12 | F11: 1.5 | G11: 1.55 | H11: =AVERAGE(F11:G11) -> 1.525 | I11: 3 | J11: 4.91 | K11: 5.11 | L11: =AVERAGE(J11:K11) -> 5.01 | M11: 14 | N11: 5.1 | O11: 4.6 | P11: =AVERAGE(N11:O11) -> 4.85 | Q11: 3 | R11: 34 | S11: 29 | T11: =AVERAGE(R11:S11) -> 31.5 | U11: 2 | W11: =SUM(E11,I11,M11,Q11,U11) -> 34
A12: Francis Askew | B12: 4.69 | C12: 4.58 | D12: =AVERAGE(B12,C12) -> 4.635 | E12: 15 | F12: 1.2 | G12: 1.5 | H12: =AVERAGE(F12:G12) -> 1.35 | I12: 9 | J12: 3.8 | K12: 4.45 | L12: =AVERAGE(J12:K12) -> 4.125 | M12: 26 | N12: 4.2 | O12: 4.5 | P12: =AVERAGE(N12:O12) -> 4.35 | Q12: 4 | R12: 36 | S12: 24 | T12: =AVERAGE(R12:S12) -> 30 | U12: 3 | W12: =SUM(E12,I12,M12,Q12,U12) -> 57
A13: Francis Askew | B13: 3.12 | C13: 4.22 | D13: =AVERAGE(B13,C13) -> 3.67 | E13: 23 | F13: 1.1 | G13: 1.1 | H13: =AVERAGE(F13:G13) -> 1.1 | I13: 16 | J13: 3.06 | K13: 5.03 | L13: =AVERAGE(J13:K13) -> 4.045 | M13: 28 | N13: 3.7 | O13: 3.8 | P13: =AVERAGE(N13:O13) -> 3.75 | Q13: 12 | R13: 36 | S13: 24 | T13: =AVERAGE(R13:S13) -> 30 | U13: 3 | W13: =SUM(E13,I13,M13,Q13,U13) -> 82 | X13: =SUM(W11:W13) -> 173
A14: Ings Primary | B14: 6.47 | C14: 8.17 | D14: =AVERAGE(B14,C14) -> 7.32 | E14: 5 | F14: 1.3 | G14: 1.4 | H14: =AVERAGE(F14:G14) -> 1.35 | I14: 9 | J14: 5.63 | K14: 7.2 | L14: =AVERAGE(J14:K14) -> 6.415 | M14: 2 | N14: 4 | O14: 4.7 | P14: =AVERAGE(N14:O14) -> 4.35 | Q14: 4 | R14: 34 | S14: 23 | T14: =AVERAGE(R14:S14) -> 28.5 | U14: 4 | W14: =SUM(E14,I14,M14,Q14,U14) -> 24
A15: Ings Primary | B15: 3.78 | C15: 6.62 | D15: =AVERAGE(B15,C15) -> 5.2 | E15: 11 | F15: 1.2 | G15: 1.45 | H15: =AVERAGE(F15:G15) -> 1.325 | I15: 10 | J15: 5.25 | K15: 5.58 | L15: =AVERAGE(J15:K15) -> 5.415 | M15: 9 | N15: 3.3 | O15: 4 | P15: =AVERAGE(N15:O15) -> 3.65 | Q15: 14 | R15: 24 | S15: 25 | T15: =AVERAGE(R15:S15) -> 24.5 | U15: 8 | W15: =SUM(E15,I15,M15,Q15,U15) -> 52
A16: Ings Primary | B16: 6.32 | C16: 3.24 | D16: =AVERAGE(B16,C16) -> 4.78 | E16: 14 | F16: 1.2 | G16: 1.4 | H16: =AVERAGE(F16:G16) -> 1.3 | I16: 11 | J16: 4.49 | K16: 5.1 | L16: =AVERAGE(J16:K16) -> 4.795 | M16: 15 | N16: 3 | O16: 4.1 | P16: =AVERAGE(N16:O16) -> 3.55 | Q16: 15 | R16: 23 | S16: 18 | T16: =AVERAGE(R16:S16) -> 20.5 | U16: 11 | W16: =SUM(E16,I16,M16,Q16,U16) -> 66 | X16: =SUM(W14:W16) -> 142
A17: Mersey Primary | B17: 8.42 | C17: 8.04 | D17: =AVERAGE(B17,C17) -> 8.23 | E17: 2 | F17: 1.6 | G17: 1.58 | H17: =AVERAGE(F17:G17) -> 1.59 | I17: 2 | J17: 4.6 | K17: 4.64 | L17: =AVERAGE(J17:K17) -> 4.62 | M17: 19 | N17: 4.3 | O17: 3.9 | P17: =AVERAGE(N17:O17) -> 4.1 | Q17: 6 | R17: 37 | S17: 28 | T17: =AVERAGE(R17:S17) -> 32.5 | U17: 1 | W17: =SUM(E17,I17,M17,Q17,U17) -> 30
A18: Mersey Primary | B18: 9.41 | C18: 5.33 | D18: =AVERAGE(B18,C18) -> 7.37 | E18: 4 | F18: 1.5 | G18: 1.35 | H18: =AVERAGE(F18:G18) -> 1.425 | I18: 5 | J18: 3.67 | K18: 4.44 | L18: =AVERAGE(J18:K18) -> 4.055 | M18: 27 | N18: 3.7 | O18: 4.3 | P18: =AVERAGE(N18:O18) -> 4 | Q18: 7 | R18: 27 | S18: 22 | T18: =AVERAGE(R18:S18) -> 24.5 | U18: 8 | W18: =SUM(E18,I18,M18,Q18,U18) -> 51
A19: Mersey Primary | B19: 3.25 | C19: 2.8 | D19: =AVERAGE(B19,C19) -> 3.025 | E19: 28 | F19: 1.3 | G19: 1.5 | H19: =AVERAGE(F19:G19) -> 1.4 | I19: 6 | J19: 3.84 | K19: 4.2 | L19: =AVERAGE(J19:K19) -> 4.02 | M19: 29 | N19: 3.3 | O19: 4.1 | P19: =AVERAGE(N19:O19) -> 3.7 | Q19: 13 | R19: 20 | S19: 17 | T19: =AVERAGE(R19:S19) -> 18.5 | U19: 13 | W19: =SUM(E19,I19,M19,Q19,U19) -> 89 | X19: =SUM(W17:W19) -> 170
A20: Neasden Primary | B20: 6.63 | C20: 4.06 | D20: =AVERAGE(B20:C20) -> 5.345 | E20: 10 | F20: 1.3 | G20: 1.55 | H20: =AVERAGE(F20:G20) -> 1.425 | I20: 5 | J20: 6.1 | K20: 6.4 | L20: =AVERAGE(J20:K20) -> 6.25 | M20: 3 | N20: 4.1 | O20: 4.2 | P20: =AVERAGE(N20:O20) -> 4.15 | Q20: 5 | R20: 34 | S20: 26 | T20: =AVERAGE(R20:S20) -> 30 | U20: 3 | W20: =SUM(E20,I20,M20,Q20,U20) -> 26
A21: Neasden Primary | B21: 5.42 | C21: 4.19 | D21: =AVERAGE(B21:C21) -> 4.805 | E21: 13 | F21: 1.25 | G21: 1.3 | H21: =AVERAGE(F21:G21) -> 1.275 | I21: 12 | J21: 5.6 | K21: 6.1 | L21: =AVERAGE(J21:K21) -> 5.85 | M21: 6 | N21: 4.1 | O21: 4.2 | P21: =AVERAGE(N21:O21) -> 4.15 | Q21: 5 | R21: 22 | S21: 17 | T21: =AVERAGE(R21:S21) -> 19.5 | U21: 12 | W21: =SUM(E21,I21,M21,Q21,U21) -> 48
A22: Neasden Primary | B22: 3.82 | C22: 3.95 | D22: =AVERAGE(B22:C22) -> 3.885 | E22: 21 | F22: 1 | G22: 1.1 | H22: =AVERAGE(F22:G22) -> 1.05 | I22: 17 | J22: 4.73 | K22: 4.7 | L22: =AVERAGE(J22:K22) -> 4.715 | M22: 18 | N22: 4 | O22: 3.9 | P22: =AVERAGE(N22:O22) -> 3.95 | Q22: 8 | R22: 19 | S22: 19 | T22: =AVERAGE(R22:S22) -> 19 | U22: 13 | W22: =SUM(E22,I22,M22,Q22,U22) -> 77 | X22: =SUM(W20:W22) -> 151
A23: Sidmouth Primary | B23: 8.44 | C23: 9.04 | D23: =AVERAGE(B23:C23) -> 8.74 | E23: 1 | F23: 1.7 | G23: 1.75 | H23: =AVERAGE(F23:G23) -> 1.725 | I23: 1 | J23: 4.5 | K23: 5.53 | L23: =AVERAGE(J23:K23) -> 5.015 | M23: 13 | N23: 4.8 | O23: 5.2 | P23: =AVERAGE(N23:O23) -> 5 | Q23: 1 | R23: 34 | S23: 32 | T23: =AVERAGE(R23:S23) -> 33 | U23: 1 | W23: =SUM(E23,I23,M23,Q23,U23) -> 17
A24: Sidmouth Primary | B24: 6.64 | C24: 4.9 | D24: =AVERAGE(B24:C24) -> 5.77 | E24: 9 | F24: 1.5 | G24: 1.4 | H24: =AVERAGE(F24:G24) -> 1.45 | I24: 4 | J24: 4.5 | K24: 4.39 | L24: =AVERAGE(J24:K24) -> 4.445 | M24: 22 | N24: 3.8 | O24: 3.8 | P24: =AVERAGE(N24:O24) -> 3.8 | Q24: 11 | R24: 33 | S24: 23 | T24: =AVERAGE(R24:S24) -> 28 | U24: 5 | W24: =SUM(E24,I24,M24,Q24,U24) -> 51
A25: Sidmouth Primary | B25: 2.39 | C25: 5.59 | D25: =AVERAGE(B25:C25) -> 3.99 | E25: 20 | F25: 1.4 | G25: 1.34 | H25: =AVERAGE(F25:G25) -> 1.37 | I25: 8 | J25: 4.31 | K25: 4.3 | L25: =AVERAGE(J25:K25) -> 4.305 | M25: 24 | N25: 3.1 | O25: 4 | P25: =AVERAGE(N25:O25) -> 3.55 | Q25: 15 | R25: 33 | S25: 19 | T25: =AVERAGE(R25:S25) -> 26 | U25: 7 | W25: =SUM(E25,I25,M25,Q25,U25) -> 74 | X25: =SUM(W23:W25) -> 142
A26: St Charles Primary | B26: 7.57 | C26: 7.5 | D26: =AVERAGE(B26:C26) -> 7.535 | E26: 3 | F26: 1.2 | G26: 1.3 | H26: =AVERAGE(F26:G26) -> 1.25 | I26: 13 | J26: 6.6 | K26: 5.5 | L26: =AVERAGE(J26:K26) -> 6.05 | M26: 5 | N26: 4.4 | O26: 4.3 | P26: =AVERAGE(N26:O26) -> 4.35 | Q26: 4 | R26: 34 | S26: 22 | T26: =AVERAGE(R26:S26) -> 28 | U26: 5 | W26: =SUM(E26,I26,M26,Q26,U26) -> 30
A27: St Charles Primary | B27: 5.91 | C27: 3.12 | D27: =AVERAGE(B27:C27) -> 4.515 | E27: 16 | F27: 1.05 | G27: 1 | H27: =AVERAGE(F27:G27) -> 1.025 | I27: 18 | J27: 6.8 | K27: 4.8 | L27: =AVERAGE(J27:K27) -> 5.8 | M27: 7 | N27: 3.3 | O27: 4.7 | P27: =AVERAGE(N27:O27) -> 4 | Q27: 7 | R27: 20 | S27: 16 | T27: =AVERAGE(R27:S27) -> 18 | U27: 14 | W27: =SUM(E27,I27,M27,Q27,U27) -> 62
A28: St Charles Primary | B28: 2.12 | C28: 5.63 | D28: =AVERAGE(B28:C28) -> 3.875 | E28: 22 | F28: 0.8 | G28: 1 | H28: =AVERAGE(F28:G28) -> 0.9 | I28: 19 | J28: 4.64 | K28: 4.5 | L28: =AVERAGE(J28:K28) -> 4.57 | M28: 20 | N28: 2.6 | O28: 2.8 | P28: =AVERAGE(N28:O28) -> 2.7 | Q28: 19 | R28: 14 | S28: 13 | T28: =AVERAGE(R28:S28) -> 13.5 | U28: 16 | W28: =SUM(E28,I28,M28,Q28,U28) -> 96 | X28: =SUM(W26:W28) -> 188
A29: St Nicholas Primary | B29: 3.76 | C29: 4.55 | D29: =AVERAGE(B29:C29) -> 4.155 | E29: 18 | F29: 1.5 | G29: 1.55 | H29: =AVERAGE(F29:G29) -> 1.525 | I29: 3 | J29: 4.61 | K29: 4.9 | L29: =AVERAGE(J29:K29) -> 4.755 | M29: 16 | N29: 4.1 | O29: 4.1 | P29: =AVERAGE(N29:O29) -> 4.1 | Q29: 6 | R29: 30 | S29: 25 | T29: =AVERAGE(R29:S29) -> 27.5 | U29: 5 | W29: =SUM(E29,I29,M29,Q29,U29) -> 48
A30: St Nicholas Primary | B30: 4.42 | C30: 2.9 | D30: =AVERAGE(B30:C30) -> 3.66 | E30: 24 | F30: 1.2 | G30: 1.5 | H30: =AVERAGE(F30:G30) -> 1.35 | I30: 9 | J30: 4.25 | K30: 4.7 | L30: =AVERAGE(J30:K30) -> 4.475 | M30: 21 | N30: 3.8 | O30: 4 | P30: =AVERAGE(N30:O30) -> 3.9 | Q30: 9 | R30: 21 | S30: 16 | T30: =AVERAGE(R30:S30) -> 18.5 | U30: 13 | W30: =SUM(E30,I30,M30,Q30,U30) -> 76
A31: St Nicholas Primary | B31: 3.92 | C31: 3.15 | D31: =AVERAGE(B31:C31) -> 3.535 | E31: 25 | F31: 1 | G31: 1.25 | H31: =AVERAGE(F31:G31) -> 1.125 | I31: 15 | J31: 4.28 | K31: 4.1 | L31: =AVERAGE(J31:K31) -> 4.19 | M31: 25 | N31: 3.7 | O31: 4 | P31: =AVERAGE(N31:O31) -> 3.85 | Q31: 10 | R31: 20 | S31: 14 | T31: =AVERAGE(R31:S31) -> 17 | U31: 15 | W31: =SUM(E31,I31,M31,Q31,U31) -> 90 | X31: =SUM(W29:W31) -> 214
A32: Woodlands Primary | B32: 6.5 | C32: 5.62 | D32: =AVERAGE(B32:C32) -> 6.06 | E32: 8 | F32: 1.35 | G32: 1.4 | H32: =AVERAGE(F32:G32) -> 1.375 | I32: 7 | J32: 6.94 | K32: 6.05 | L32: =AVERAGE(J32:K32) -> 6.495 | M32: 1 | N32: 3.9 | O32: 3.8 | P32: =AVERAGE(N32:O32) -> 3.85 | Q32: 10 | R32: 33 | S32: 25 | T32: =AVERAGE(R32:S32) -> 29 | U32: 4 | W32: =SUM(E32,I32,M32,Q32,U32) -> 30
A33: Woodlands Primary | B33: 3.53 | C33: 3.06 | D33: =AVERAGE(B33:C33) -> 3.295 | E33: 26 | F33: 1.4 | G33: 1.3 | H33: =AVERAGE(F33:G33) -> 1.35 | I33: 9 | J33: 5.2 | K33: 5.7 | L33: =AVERAGE(J33:K33) -> 5.45 | M33: 8 | N33: 3.2 | O33: 4.2 | P33: =AVERAGE(N33:O33) -> 3.7 | Q33: 13 | R33: 30 | S33: 16 | T33: =AVERAGE(R33:S33) -> 23 | U33: 9 | W33: =SUM(E33,I33,M33,Q33,U33) -> 65
A34: Woodlands Primary | B34: 3.72 | C34: 2.74 | D34: =AVERAGE(B34:C34) -> 3.23 | E34: 27 | F34: 1.3 | G34: 1.2 | H34: =AVERAGE(F34:G34) -> 1.25 | I34: 13 | J34: 5.26 | K34: 4.95 | L34: =AVERAGE(J34:K34) -> 5.105 | M34: 12 | N34: 3.7 | O34: 3.2 | P34: =AVERAGE(N34:O34) -> 3.45 | Q34: 17 | R34: 26 | S34: 19 | T34: =AVERAGE(R34:S34) -> 22.5 | U34: 9 | W34: =SUM(E34,I34,M34,Q34,U34) -> 78 | X34: =SUM(W32:W34) -> 173
B135: Speed Bouce
A136: School | B136: Attempt 1 | C136: Attempt 2 | D136: Average | E136: Score
A137: Christopher Pickering | B137: 24 | C137: 26 | D137: =AVERAGE(B137:C137) -> 25 | E137: 8
A138: Christopher Pickering | B138: 22 | C138: 24 | D138: =AVERAGE(B138:C138) -> 23 | E138: 9
A139: Christopher Pickering | B139: 18 | C139: 20 | D139: =AVERAGE(B139:C139) -> 19 | E139: 13
A140: Clifton Primary | B140: 32 | C140: 26 | D140: =AVERAGE(B140:C140) -> 29 | E140: 4
A141: Clifton Primary | B141: 26 | C141: 27 | D141: =AVERAGE(B141:C141) -> 26.5 | E141: 6
A142: Clifton Primary | B142: 22 | C142: 22 | D142: =AVERAGE(B142:C142) -> 22 | E142: 10
A143: Francis Askew | B143: 34 | C143: 29 | D143: =AVERAGE(B143:C143) -> 31.5 | E143: 2
A144: Francis Askew | B144: 36 | C144: 24 | D144: =AVERAGE(B144:C144) -> 30 | E144: 3
A145: Francis Askew | B145: 36 | C145: 24 | D145: =AVERAGE(B145:C145) -> 30 | E145: 3
A146: Ings Primary | B146: 34 | C146: 23 | D146: =AVERAGE(B146:C146) -> 28.5 | E146: 4
A147: Ings Primary | B147: 24 | C147: 25 | D147: =AVERAGE(B147:C147) -> 24.5 | E147: 8
A148: Ings Primary | B148: 23 | C148: 18 | D148: =AVERAGE(B148:C148) -> 20.5 | E148: 11
A149: Mersey Primary | B149: 37 | C149: 28 | D149: =AVERAGE(B149:C149) -> 32.5 | E149: 1
A150: Mersey Primary | B150: 27 | C150: 22 | D150: =AVERAGE(B150:C150) -> 24.5 | E150: 8
A151: Mersey Primary | B151: 20 | C151: 17 | D151: =AVERAGE(B151:C151) -> 18.5 | E151: 13
A152: Neasden Primary | B152: 34 | C152: 26 | D152: =AVERAGE(B152:C152) -> 30 | E152: 3
A153: Neasden Primary | B153: 22 | C153: 17 | D153: =AVERAGE(B153:C153) -> 19.5 | E153: 12
A154: Neasden Primary | B154: 19 | C154: 19 | D154: =AVERAGE(B154:C154) -> 19 | E154: 13
A155: Sidmouth Primary | B155: 34 | C155: 32 | D155: =AVERAGE(B155:C155) -> 33 | E155: 1
A156: Sidmouth Primary | B156: 33 | C156: 23 | D156: =AVERAGE(B156:C156) -> 28 | E156: 5
A157: Sidmouth Primary | B157: 33 | C157: 19 | D157: =AVERAGE(B157:C157) -> 26 | E157: 7
A158: St Charles Primary | B158: 34 | C158: 22 | D158: =AVERAGE(B158:C158) -> 28 | E158: 5
A159: St Charles Primary | B159: 20 | C159: 16 | D159: =AVERAGE(B159:C159) -> 18 | E159: 14
A160: St Charles Primary | B160: 14 | C160: 13 | D160: =AVERAGE(B160:C160) -> 13.5 | E160: 16
A161: St Nicholas Primary | B161: 30 | C161: 25 | D161: =AVERAGE(B161:C161) -> 27.5 | E161: 5
A162: St Nicholas Primary | B162: 21 | C162: 16 | D162: =AVERAGE(B162:C162) -> 18.5 | E162: 13
A163: St Nicholas Primary | B163: 20 | C163: 14 | D163: =AVERAGE(B163:C163) -> 17 | E163: 15
A164: Woodlands Primary | B164: 33 | C164: 25 | D164: =AVERAGE(B164:C164) -> 29 | E164: 4
A165: Woodlands Primary | B165: 30 | C165: 16 | D165: =AVERAGE(B165:C165) -> 23 | E165: 9
A166: Woodlands Primary | B166: 26 | C166: 19 | D166: =AVERAGE(B166:C166) -> 22.5 | E166: 9

Sheet Y34 Track
A1: Year 3/4 Track Results
A2: Girls
B3: 1+1 Lap | E3: 2+2 Lap | H3: 1+1 Hurldes | K3: 4x1 Relay | O3: School Total Score
A4: School | B4: Time | C4: Pos | D4: Score | E4: Time | F4: Pos | G4: Score | H4: Time | I4: Pos | J4: Score | K4: Time | L4: Pos | M4: Score
A5: Christopher Pickering | B5: 30.48 | C5: 4 | D5: =C5*6 -> 24 | E5: 64.5 | F5: 6 | G5: =F5*6 -> 36 | H5: 33.48 | I5: 3 | J5: =I5*6 -> 18 | K5: 50.06 | L5: 1 | M5: =L5*6 -> 6 | O5: =SUM(D5,G5,J5,M5) -> 84
A6: Clifton Primary | B6: 31.89 | C6: 7 | D6: =C6*6 -> 42 | E6: 67.98 | F6: 8 | G6: =F6*6 -> 48 | H6: 34.06 | I6: 4 | J6: =I6*6 -> 24 | K6: 60.92 | L6: 2 | M6: =L6*6 -> 12 | O6: =SUM(D6,G6,J6,M6) -> 126
A7: Francis Aksew | B7: 28.17 | C7: 1 | D7: 6 | E7: 61.5 | F7: 2 | G7: 12 | H7: 34.06 | I7: 4 | J7: 24 | K7: 65.04 | L7: 3 | M7: 18 | O7: 60
A8: Ings | B8: 30.14 | C8: 2 | D8: 12 | E8: 60.92 | F8: 1 | G8: 6 | H8: 33.48 | I8: 3 | J8: 18 | K8: 66.11 | L8: 5 | M8: 30 | O8: 66
A9: Mersey Academy | B9: 33.79 | C9: 10 | D9: 60 | E9: 63.82 | F9: 4 | G9: 24 | H9: 39.56 | I9: 7 | J9: 42 | K9: 65.77 | L9: 4 | M9: 24 | O9: 150
A10: Neasden | B10: 30.64 | C10: 5 | D10: 30 | E10: 65.23 | F10: 7 | G10: 42 | H10: 31.86 | I10: 1 | J10: 6 | K10: 70.34 | L10: 6 | M10: 36 | O10: 114
A11: Sidmouth | B11: 30.22 | C11: 3 | D11: 18 | E11: 64.08 | F11: 5 | G11: 30 | H11: 34.81 | I11: 5 | J11: 30 | K11: 70.34 | L11: 6 | M11: 36 | O11: 114
A12: St Charles | B12: 33.5 | C12: 9 | D12: 54 | E12: 68.52 | F12: 9 | G12: 54 | H12: 57.5 | I12: 8 | J12: 48 | K12: 72.71 | L12: 9 | M12: 54 | O12: 210
A13: St Nicholas | B13: 33.45 | C13: 8 | D13: 48 | E13: 62.39 | F13: 3 | G13: 18 | H13: 35.61 | I13: 6 | J13: 36 | K13: 72.57 | L13: 8 | M13: 48 | O13: 150
A14: Woodlands | B14: 31.86 | C14: 6 | D14: 36 | E14: 65.23 | F14: 7 | G14: 42 | H14: 33.08 | I14: 2 | J14: 12 | K14: 72.3 | L14: 7 | M14: 42 | O14: 132
A16: Year 3/4 Track Results
A17: Boys
B18: 1+1 Lap | E18: 2+2 Lap | H18: 1+1 Hurldes | K18: 4x1 Relay
A19: School | B19: Time | C19: Pos | D19: Score | E19: Time | F19: Pos | G19: Score | H19: Time | I19: Pos | J19: Score | K19: Time | L19: Pos | M19: Score
A20: Christopher Pickering | B20: 27.33 | C20: 1 | D20: =C20*6 -> 6 | E20: 55.24 | F20: 1 | G20: =F20*6 -> 6 | H20: 31.96 | I20: 4 | J20: =I20*6 -> 24 | K20: 56.75 | L20: 1 | M20: =L20*6 -> 6 | O20: 42
A21: Clifton Primary | B21: 28.79 | C21: 6 | D21: =C21*6 -> 36 | E21: 64.91 | F21: 2 | G21: =F21*6 -> 12 | H21: 30.17 | I21: 2 | J21: =I21*6 -> 12 | K21: 58.47 | L21: 3 | M21: =L21*6 -> 18 | O21: 78
A22: Francis Aksew | B22: 29.62 | C22: 8 | D22: 48 | E22: 64.78 | F22: 3 | G22: 18 | H22: 31.19 | I22: 3 | J22: 18 | K22: 62.38 | L22: 9 | M22: 54 | O22: 138
A23: Ings | B23: 29.14 | C23: 7 | D23: 42 | E23: 66.24 | F23: 5 | G23: 30 | H23: 32.6 | I23: 6 | J23: 36 | K23: 59.26 | L23: 5 | M23: 30 | O23: 138
A24: Mersey Academy | B24: 30.73 | C24: 9 | D24: 54 | E24: 55.03 | F24: 4 | G24: 24 | H24: 34.19 | I24: 8 | J24: 48 | K24: 61.11 | L24: 7 | M24: 42 | O24: 168
A25: Neasden | B25: 28.29 | C25: 3 | D25: 18 | E25: 61.67 | F25: 6 | G25: 36 | H25: 30.11 | I25: 1 | J25: 6 | K25: 58.93 | L25: 4 | M25: 24 | O25: 84
A26: Sidmouth | B26: 28.65 | C26: 5 | D26: 30 | E26: 63.88 | F26: 9 | G26: 54 | H26: 33.45 | I26: 7 | J26: 42 | K26: 57.51 | L26: 2 | M26: 12 | O26: 138
A27: St Charles | B27: 28.2 | C27: 2 | D27: 12 | E27: 57.92 | F27: 7 | G27: 42 | H27: 35.04 | I27: 9 | J27: 54 | K27: 61.94 | L27: 8 | M27: 48 | O27: 156
A28: St Nicholas | B28: 35.17 | C28: 10 | D28: 60 | E28: 65.46 | F28: 8 | G28: 48 | H28: 39.4 | I28: 10 | J28: 60 | K28: 65.78 | L28: 10 | M28: 60 | O28: 228
A29: Woodlands | B29: 28.41 | C29: 4 | D29: 24 | E29: 55.52 | F29: 10 | G29: 60 | H29: 32.19 | I29: 5 | J29: 30 | K29: 59.38 | L29: 6 | M29: 36 | O29: 150

Sheet Y56 Field
A1: Hull School Games SportsHall Athletics Qualifier 3 Results
A2: Year 5/6 Boys Field
B3: Javelin | F3: Standing Long Jump | J3: Standing Triple Jump | N3: Chest Push | R3: Speed Bouce | W3: Total School Score
A4: School | B4: Attempt 1 | C4: Attempt 2 | D4: Average | E4: Score | F4: Attempt 1 | G4: Attempt 2 | H4: Average | I4: Score | J4: Attempt 1 | K4: Attempt 2 | L4: Average | M4: Score | N4: Attempt 1 | O4: Attempt 2 | P4: Average | Q4: Score | R4: Attempt 1 | S4: Attempt 2 | T4: Average | U4: Score
A5: Christopher Pickering | B5: 13.1 | C5: 13.1 | D5: =AVERAGE(B5:C5) -> 13.1 | E5: 2 | F5: 2.1 | G5: 2.05 | H5: =AVERAGE(F5:G5) -> 2.075 | I5: 4 | J5: 4.11 | K5: 5.16 | L5: =AVERAGE(J5:K5) -> 4.635 | M5: 7 | N5: 7.2 | O5: 7.1 | P5: =AVERAGE(N5:O5) -> 7.15 | Q5: 3 | R5: 50 | S5: 46 | T5: =AVERAGE(R5:S5) -> 48 | U5: 1 | W5: =SUM(E5,I5,M5,Q5,U5) -> 17
A6: Christopher Pickering | B6: 11 | C6: 10.7 | D6: =AVERAGE(B6:C6) -> 10.85 | E6: 9 | F6: 1.65 | G6: 1.7 | H6: =AVERAGE(F6:G6) -> 1.675 | I6: 13 | J6: 4.28 | K6: 4.74 | L6: =AVERAGE(J6:K6) -> 4.51 | M6: 11 | N6: 7 | O6: 6.9 | P6: =AVERAGE(N6:O6) -> 6.95 | Q6: 4 | R6: 45 | S6: 42 | T6: =AVERAGE(R6:S6) -> 43.5 | U6: 3 | W6: =SUM(E6,I6,M6,Q6,U6) -> 40
A7: Christopher Pickering | B7: 8.71 | C7: 6.8 | D7: =AVERAGE(B7:C7) -> 7.755 | E7: 19 | F7: 1.5 | G7: 1.65 | H7: =AVERAGE(F7:G7) -> 1.575 | I7: 14 | J7: 4.28 | K7: 4.42 | L7: =AVERAGE(J7:K7) -> 4.35 | M7: 13 | N7: 6 | O7: 6.7 | P7: =AVERAGE(N7:O7) -> 6.35 | Q7: 7 | R7: 34 | S7: 30 | T7: =AVERAGE(R7:S7) -> 32 | U7: 12 | W7: 65 | X7: =SUM(W5:W7) -> 122
A8: Clifton Primary | B8: 11 | C8: 12.1 | D8: =AVERAGE(B8:C8) -> 11.55 | E8: 6 | F8: 2 | G8: 2 | H8: =AVERAGE(F8:G8) -> 2 | I8: 6 | J8: 4.95 | K8: 4.5 | L8: =AVERAGE(J8:K8) -> 4.725 | M8: 6 | N8: 6 | O8: 6.5 | P8: =AVERAGE(N8:O8) -> 6.25 | Q8: 8 | R8: 36 | S8: 32 | T8: =AVERAGE(R8:S8) -> 34 | U8: 11 | W8: 37
A9: Clifton Primary | B9: 9.3 | C9: 9.3 | D9: =AVERAGE(B9:C9) -> 9.3 | E9: 16 | F9: 1.5 | G9: 1.55 | H9: =AVERAGE(F9:G9) -> 1.525 | I9: 15 | J9: 4.26 | K9: 4.3 | L9: =AVERAGE(J9:K9) -> 4.28 | M9: 14 | N9: 5.8 | O9: 5.6 | P9: =AVERAGE(N9:O9) -> 5.7 | Q9: 12 | R9: 27 | S9: 20 | T9: =AVERAGE(R9:S9) -> 23.5 | U9: 15 | W9: 72
A10: Clifton Primary | B10: 4.8 | C10: 6.45 | D10: =AVERAGE(B10:C10) -> 5.625 | E10: 22 | F10: 1.6 | G10: 1.1 | H10: =AVERAGE(F10:G10) -> 1.35 | I10: 17 | J10: 3.8 | K10: 3.81 | L10: =AVERAGE(J10:K10) -> 3.805 | M10: 18 | N10: 4.9 | O10: 5.4 | P10: =AVERAGE(N10:O10) -> 5.15 | Q10: 18 | R10: 13 | S10: 10 | T10: =AVERAGE(R10:S10) -> 11.5 | U10: 17 | W10: 92 | X10: =SUM(W8:W10) -> 201
A11: Ings Primary | B11: 11.95 | C11: 11.12 | D11: =AVERAGE(B11:C11) -> 11.535 | E11: 7 | F11: 1.95 | G11: 2.15 | H11: =AVERAGE(F11:G11) -> 2.05 | I11: 5 | J11: 4.53 | K11: 4.63 | L11: =AVERAGE(J11:K11) -> 4.58 | M11: 8 | N11: 6.3 | O11: 6.8 | P11: =AVERAGE(N11:O11) -> 6.55 | Q11: 6 | R11: 46 | S11: 40 | T11: =AVERAGE(R11:S11) -> 43 | U11: 4 | W11: 30
A12: Ings Primary | B12: 9.5 | C12: 10.1 | D12: =AVERAGE(B12:C12) -> 9.8 | E12: 15 | F12: 1.95 | G12: 2 | H12: =AVERAGE(F12:G12) -> 1.975 | I12: 7 | J12: 3.98 | K12: 4 | L12: =AVERAGE(J12:K12) -> 3.99 | M12: 15 | N12: 5.3 | O12: 6.6 | P12: =AVERAGE(N12:O12) -> 5.95 | Q12: 11 | R12: 47 | S12: 39 | T12: =AVERAGE(R12:S12) -> 43 | U12: 4 | W12: 52
A13: Ings Primary | B13: 7.3 | C13: 11 | D13: =AVERAGE(B13:C13) -> 9.15 | E13: 17 | F13: 1.4 | G13: 2 | H13: =AVERAGE(F13:G13) -> 1.7 | I13: 12 | J13: 3.3 | K13: 3.4 | L13: =AVERAGE(J13:K13) -> 3.35 | M13: 22 | N13: 4.9 | O13: 5.2 | P13: =AVERAGE(N13:O13) -> 5.05 | Q13: 19 | R13: 39 | S13: 35 | T13: =AVERAGE(R13:S13) -> 37 | U13: 9 | W13: 79 | X13: =SUM(W11:W13) -> 161
A14: Neasden Primary | B14: 11.6 | C14: 11.4 | D14: =AVERAGE(B14:C14) -> 11.5 | E14: 8 | F14: 2.4 | G14: 2.45 | H14: =AVERAGE(F14:G14) -> 2.425 | I14: 1 | J14: 5.23 | K14: 6.1 | L14: =AVERAGE(J14:K14) -> 5.665 | M14: 2 | N14: 7.3 | O14: 7.7 | P14: =AVERAGE(N14:O14) -> 7.5 | Q14: 1 | R14: 44 | S14: 39 | T14: =AVERAGE(R14:S14) -> 41.5 | U14: 5 | W14: 17
A15: Neasden Primary | B15: 9.7 | C15: 10.8 | D15: =AVERAGE(B15:C15) -> 10.25 | E15: 12 | F15: 1.65 | G15: 1.8 | H15: =AVERAGE(F15:G15) -> 1.725 | I15: 11 | J15: 5.69 | K15: 5.6 | L15: =AVERAGE(J15:K15) -> 5.645 | M15: 3 | N15: 6.4 | O15: 7.2 | P15: =AVERAGE(N15:O15) -> 6.8 | Q15: 5 | R15: 52 | S15: 29 | T15: =AVERAGE(R15:S15) -> 40.5 | U15: 6 | W15: 37
A16: Neasden Primary | B16: 8.4 | C16: 11.92 | D16: =AVERAGE(B16:C16) -> 10.16 | E16: 13 | F16: 1.7 | G16: 1.7 | H16: =AVERAGE(F16:G16) -> 1.7 | I16: 12 | J16: 4.51 | K16: 4.54 | L16: =AVERAGE(J16:K16) -> 4.525 | M16: 10 | N16: 6.1 | O16: 6.3 | P16: =AVERAGE(N16:O16) -> 6.2 | Q16: 9 | R16: 43 | S16: 38 | T16: =AVERAGE(R16:S16) -> 40.5 | U16: 6 | W16: 50 | X16: =SUM(W14:W16) -> 104
A17: Sidmouth Primary | B17: 12.7 | C17: 14.6 | D17: =AVERAGE(B17:C17) -> 13.65 | E17: 1 | F17: 2.2 | G17: 2.15 | H17: =AVERAGE(F17:G17) -> 2.175 | I17: 2 | J17: 5.04 | K17: 5.7 | L17: =AVERAGE(J17:K17) -> 5.37 | M17: 4 | N17: 7 | O17: 6.6 | P17: =AVERAGE(N17:O17) -> 6.8 | Q17: 5 | R17: 47 | S17: 37 | T17: =AVERAGE(R17:S17) -> 42 | U17: 5 | W17: 17
A18: Sidmouth Primary | B18: 10.48 | C18: 9.83 | D18: =AVERAGE(B18:C18) -> 10.155 | E18: 13 | F18: 2.1 | G18: 2.2 | H18: =AVERAGE(F18:G18) -> 2.15 | I18: 3 | J18: 5.1 | K18: 4.62 | L18: =AVERAGE(J18:K18) -> 4.86 | M18: 5 | N18: 5.8 | O18: 5.5 | P18: =AVERAGE(N18:O18) -> 5.65 | Q18: 14 | R18: 43 | S18: 37 | T18: =AVERAGE(R18:S18) -> 40 | U18: 7 | W18: 42
A19: Sidmouth Primary | B19: 7.5 | C19: 7.2 | D19: =AVERAGE(B19:C19) -> 7.35 | E19: 20 | F19: 1.9 | G19: 2 | H19: =AVERAGE(F19:G19) -> 1.95 | I19: 8 | J19: 3.79 | K19: 4.03 | L19: =AVERAGE(J19:K19) -> 3.91 | M19: 16 | N19: 5.2 | O19: 5.8 | P19: =AVERAGE(N19:O19) -> 5.5 | Q19: 16 | R19: 42 | S19: 32 | T19: =AVERAGE(R19:S19) -> 37 | U19: 9 | W19: 69 | X19: =SUM(W17:W19) -> 128
A20: St Charles Primary | B20: 12.51 | C20: 11.96 | D20: =AVERAGE(B20:C20) -> 12.235 | E20: 5 | F20: 2 | G20: 2 | H20: =AVERAGE(F20:G20) -> 2 | I20: 6 | J20: 4.18 | K20: 4.84 | L20: =AVERAGE(J20:K20) -> 4.51 | M20: 11 | N20: 5.4 | O20: 5.96 | P20: =AVERAGE(N20:O20) -> 5.68 | Q20: 13 | R20: 49 | S20: 41 | T20: =AVERAGE(R20:S20) -> 45 | U20: 2 | W20: 37
A21: St Charles Primary | B21: 9.4 | C21: 10.2 | D21: =AVERAGE(B21:C21) -> 9.8 | E21: 15 | F21: 1.55 | G21: 1.6 | H21: =AVERAGE(F21:G21) -> 1.575 | I21: 14 | J21: 4.5 | K21: 4.45 | L21: =AVERAGE(J21:K21) -> 4.475 | M21: 12 | N21: 5.6 | O21: 5.5 | P21: =AVERAGE(N21:O21) -> 5.55 | Q21: 15 | R21: 28 | S21: 25 | T21: =AVERAGE(R21:S21) -> 26.5 | U21: 13 | W21: 69
A22: St Charles Primary | B22: 11.1 | C22: 5.8 | D22: =AVERAGE(B22:C22) -> 8.45 | E22: 18 | F22: 1.4 | G22: 1.3 | H22: =AVERAGE(F22:G22) -> 1.35 | I22: 17 | J22: 4 | K22: 3.75 | L22: =AVERAGE(J22:K22) -> 3.875 | M22: 17 | N22: 4.7 | O22: 4.9 | P22: =AVERAGE(N22:O22) -> 4.8 | Q22: 21 | R22: 27 | S22: 24 | T22: =AVERAGE(R22:S22) -> 25.5 | U22: 14 | W22: 87 | X22: =SUM(W20:W22) -> 193
A23: St Nicholas Primary | B23: 11.19 | C23: 10.12 | D23: =AVERAGE(B23:C23) -> 10.655 | E23: 11 | F23: 1.75 | G23: 1.8 | H23: =AVERAGE(F23:G23) -> 1.775 | I23: 9 | J23: 6.65 | K23: 5.2 | L23: =AVERAGE(J23:K23) -> 5.925 | M23: 1 | N23: 6.1 | O23: 5.9 | P23: =AVERAGE(N23:O23) -> 6 | Q23: 10 | R23: 29 | S23: 24 | T23: =AVERAGE(R23:S23) -> 26.5 | U23: 13 | W23: 44
A24: St Nicholas Primary | B24: 9.8 | C24: 9.9 | D24: =AVERAGE(B24:C24) -> 9.85 | E24: 14 | F24: 1.65 | G24: 1.8 | H24: =AVERAGE(F24:G24) -> 1.725 | I24: 11 | J24: 3.71 | K24: 3.8 | L24: =AVERAGE(J24:K24) -> 3.755 | M24: 19 | N24: 5.1 | O24: 4.6 | P24: =AVERAGE(N24:O24) -> 4.85 | Q24: 20 | R24: 32 | S24: 20 | T24: =AVERAGE(R24:S24) -> 26 | U24: 14 | W24: 78
A25: St Nicholas Primary | B25: 9.7 | C25: 4.1 | D25: =AVERAGE(B25:C25) -> 6.9 | E25: 21 | F25: 1.4 | G25: 1.55 | H25: =AVERAGE(F25:G25) -> 1.475 | I25: 16 | J25: 3.7 | K25: 3.6 | L25: =AVERAGE(J25:K25) -> 3.65 | M25: 20 | N25: 4.6 | O25: 4.3 | P25: =AVERAGE(N25:O25) -> 4.45 | Q25: 23 | R25: 23 | S25: 12 | T25: =AVERAGE(R25:S25) -> 17.5 | U25: 16 | W25: 96 | X25: =SUM(W23:W25) -> 218
A26: Woodlands Primary | B26: 10 | C26: 15.5 | D26: =AVERAGE(B26:C26) -> 12.75 | E26: 3 | F26: 1.75 | G26: 1.75 | H26: =AVERAGE(F26:G26) -> 1.75 | I26: 10 | J26: 4.42 | K26: 4.67 | L26: =AVERAGE(J26:K26) -> 4.545 | M26: 9 | N26: 7.2 | O26: 7.2 | P26: =AVERAGE(N26:O26) -> 7.2 | Q26: 2 | R26: 43 | S26: 33 | T26: =AVERAGE(R26:S26) -> 38 | U26: 8 | W26: 32
A27: Woodlands Primary | B27: 11.1 | C27: 13.6 | D27: =AVERAGE(B27:C27) -> 12.35 | E27: 4 | F27: 1.65 | G27: 1.8 | H27: =AVERAGE(F27:G27) -> 1.725 | I27: 11 | J27: 3.5 | K27: 3.72 | L27: =AVERAGE(J27:K27) -> 3.61 | M27: 21 | N27: 5.2 | O27: 5.4 | P27: =AVERAGE(N27:O27) -> 5.3 | Q27: 17 | R27: 43 | S27: 29 | T27: =AVERAGE(R27:S27) -> 36 | U27: 10 | W27: 63
A28: Woodlands Primary | B28: 10.38 | C28: 11.06 | D28: =AVERAGE(B28:C28) -> 10.72 | E28: 10 | F28: 1.6 | G28: 1.45 | H28: =AVERAGE(F28:G28) -> 1.525 | I28: 15 | J28: 2.7 | K28: 3 | L28: =AVERAGE(J28:K28) -> 2.85 | M28: 23 | N28: 5 | O28: 4.5 | P28: =AVERAGE(N28:O28) -> 4.75 | Q28: 22 | R28: 34 | S28: 29 | T28: =AVERAGE(R28:S28) -> 31.5 | U28: 12 | W28: 82 | X28: =SUM(W26:W28) -> 177
A31: Hull School Games SportsHall Athletics Qualifier 3 Results
A32: Year 5/6 Girls Field
B33: Javelin | F33: Standing Long Jump | J33: Standing Triple Jump | N33: Chest Push | R33: Speed Bouce | W33: School Total Score
A34: School | B34: Attempt 1 | C34: Attempt 2 | D34: Average | E34: Score | F34: Attempt 1 | G34: Attempt 2 | H34: Average | I34: Score | J34: Attempt 1 | K34: Attempt 2 | L34: Average | M34: Score | N34: Attempt 1 | O34: Attempt 2 | P34: Average | Q34: Score | R34: Attempt 1 | S34: Attempt 2 | T34: Average | U34: Score
A35: Christopher Pickering | B35: 13.04 | C35: 12.1 | D35: =AVERAGE(B35:C35) -> 12.57 | E35: 2 | F35: 1.8 | G35: 1.9 | H35: =AVERAGE(F35:G35) -> 1.85 | I35: 4 | J35: 4.01 | K35: 4.33 | L35: =AVERAGE(J35:K35) -> 4.17 | M35: 8 | N35: 5.9 | O35: 5.4 | P35: =AVERAGE(N35:O35) -> 5.65 | Q35: 6 | R35: 50 | S35: 50 | T35: =AVERAGE(R35:S35) -> 50 | U35: 1 | W35: =SUM(E35,I35,M35,Q35,U35) -> 21
A36: Christopher Pickering | B36: 9 | C36: 10 | D36: =AVERAGE(B36:C36) -> 9.5 | E36: 5 | F36: 1.72 | G36: 1.8 | H36: =AVERAGE(F36:G36) -> 1.76 | I36: 5 | J36: 3.44 | K36: 4.32 | L36: =AVERAGE(J36:K36) -> 3.88 | M36: 14 | N36: 4.7 | O36: 5.2 | P36: =AVERAGE(N36:O36) -> 4.95 | Q36: 11 | R36: 48 | S36: 48 | T36: =AVERAGE(R36:S36) -> 48 | U36: 2 | W36: =SUM(E36,I36,M36,Q36,U36) -> 37
A37: Christopher Pickering | B37: 7.5 | C37: 7.9 | D37: =AVERAGE(B37:C37) -> 7.7 | E37: 12 | F37: 1.64 | G37: 1.72 | H37: =AVERAGE(F37:G37) -> 1.68 | I37: 9 | J37: 3.52 | K37: 3.82 | L37: =AVERAGE(J37:K37) -> 3.67 | M37: 17 | N37: 4.3 | O37: 4.7 | P37: =AVERAGE(N37:O37) -> 4.5 | Q37: 14 | R37: 46 | S37: 46 | T37: =AVERAGE(R37:S37) -> 46 | U37: 3 | W37: 55 | X37: =SUM(W35:W37) -> 113
A38: Clifton Primary | B38: 9.82 | C38: 10.5 | D38: =AVERAGE(B38:C38) -> 10.16 | E38: 4 | F38: 1.8 | G38: 1.9 | H38: =AVERAGE(F38:G38) -> 1.85 | I38: 4 | J38: 4.13 | K38: 4.74 | L38: =AVERAGE(J38:K38) -> 4.435 | M38: 5 | N38: 4.3 | O38: 4.6 | P38: =AVERAGE(N38:O38) -> 4.45 | Q38: 15 | R38: 37 | S38: 28 | T38: =AVERAGE(R38:S38) -> 32.5 | U38: 10 | W38: 38
A39: Clifton Primary | B39: 6.4 | C39: 4.4 | D39: =AVERAGE(B39:C39) -> 5.4 | E39: 17 | F39: 1.8 | G39: 1.7 | H39: =AVERAGE(F39:G39) -> 1.75 | I39: 6 | J39: 4.35 | K39: 4.2 | L39: =AVERAGE(J39:K39) -> 4.275 | M39: 7 | N39: 3.9 | O39: 4.4 | P39: =AVERAGE(N39:O39) -> 4.15 | Q39: 16 | R39: 30 | S39: 28 | T39: =AVERAGE(R39:S39) -> 29 | U39: 13 | W39: 59
A40: Clifton Primary | B40: 4.9 | C40: 5.7 | D40: =AVERAGE(B40:C40) -> 5.3 | E40: 18 | F40: 1.5 | G40: 1.3 | H40: =AVERAGE(F40:G40) -> 1.4 | I40: 19 | J40: 3.8 | K40: 4.5 | L40: =AVERAGE(J40:K40) -> 4.15 | M40: 9 | N40: 3.1 | O40: 2.9 | P40: =AVERAGE(N40:O40) -> 3 | Q40: 18 | R40: 15 | S40: 16 | T40: =AVERAGE(R40:S40) -> 15.5 | U40: 19 | W40: 83 | X40: =SUM(W38:W40) -> 180
A41: Ings Primary | B41: 9.4 | C41: 7.55 | D41: =AVERAGE(B41:C41) -> 8.475 | E41: 7 | F41: 1.95 | G41: 1.94 | H41: =AVERAGE(F41:G41) -> 1.945 | I41: 2 | J41: 4.79 | K41: 5 | L41: =AVERAGE(J41:K41) -> 4.895 | M41: 2 | N41: 6.6 | O41: 5.9 | P41: =AVERAGE(N41:O41) -> 6.25 | Q41: 3 | R41: 42 | S41: 32 | T41: =AVERAGE(R41:S41) -> 37 | U41: 8 | W41: 22
A42: Ings Primary | B42: 4.5 | C42: 5.7 | D42: =AVERAGE(B42:C42) -> 5.1 | E42: 19 | F42: 1.88 | G42: 1.92 | H42: =AVERAGE(F42:G42) -> 1.9 | I42: 3 | J42: 3.7 | K42: 4.1 | L42: =AVERAGE(J42:K42) -> 3.9 | M42: 13 | N42: 5.5 | O42: 5.4 | P42: =AVERAGE(N42:O42) -> 5.45 | Q42: 8 | R42: 41 | S42: 27 | T42: =AVERAGE(R42:S42) -> 34 | U42: 9 | W42: 52
A43: Ings Primary | B43: 4.1 | C43: 4.4 | D43: =AVERAGE(B43:C43) -> 4.25 | E43: 22 | F43: 1.7 | G43: 1.64 | H43: =AVERAGE(F43:G43) -> 1.67 | I43: 10 | J43: 3.05 | K43: 2.9 | L43: =AVERAGE(J43:K43) -> 2.975 | M43: 20 | N43: 5.1 | O43: 4.4 | P43: =AVERAGE(N43:O43) -> 4.75 | Q43: 12 | R43: 29 | S43: 18 | T43: =AVERAGE(R43:S43) -> 23.5 | U43: 17 | W43: 81 | X43: =SUM(W41:W43) -> 155
A44: Neasden Primary | B44: 9.45 | C44: 6.73 | D44: =AVERAGE(B44:C44) -> 8.09 | E44: 9 | F44: 1.65 | G44: 1.8 | H44: =AVERAGE(F44:G44) -> 1.725 | I44: 7 | J44: 4.31 | K44: 3.91 | L44: =AVERAGE(J44:K44) -> 4.11 | M44: 10 | N44: 7.2 | O44: 6.2 | P44: =AVERAGE(N44:O44) -> 6.7 | Q44: 1 | R44: 40 | S44: 38 | T44: =AVERAGE(R44:S44) -> 39 | U44: 6 | W44: 33
A45: Neasden Primary | B45: 9.2 | C45: 5 | D45: =AVERAGE(B45:C45) -> 7.1 | E45: 14 | F45: 1.66 | G45: 1.7 | H45: =AVERAGE(F45:G45) -> 1.68 | I45: 9 | J45: 3.65 | K45: 4.1 | L45: =AVERAGE(J45:K45) -> 3.875 | M45: 14 | N45: 5.4 | O45: 5.8 | P45: =AVERAGE(N45:O45) -> 5.6 | Q45: 7 | R45: 37 | S45: 29 | T45: =AVERAGE(R45:S45) -> 33 | U45: 10 | W45: 54
A46: Neasden Primary | B46: 3.5 | C46: 4.9 | D46: =AVERAGE(B46:C46) -> 4.2 | E46: 23 | F46: 1.5 | G46: 1.55 | H46: =AVERAGE(F46:G46) -> 1.525 | I46: 14 | J46: 3.44 | K46: 3.64 | L46: =AVERAGE(J46:K46) -> 3.54 | M46: 19 | N46: 5.1 | O46: 5.7 | P46: =AVERAGE(N46:O46) -> 5.4 | Q46: 9 | R46: 30 | S46: 16 | T46: =AVERAGE(R46:S46) -> 23 | U46: 18 | W46: 83 | X46: =SUM(W44:W46) -> 170
A47: Sidmouth Primary | B47: 8 | C47: 7.5 | D47: =AVERAGE(B47:C47) -> 7.75 | E47: 11 | F47: 2 | G47: 2.1 | H47: =AVERAGE(F47:G47) -> 2.05 | I47: 1 | J47: 4.79 | K47: 5.1 | L47: =AVERAGE(J47:K47) -> 4.945 | M47: 1 | N47: 6.5 | O47: 6.6 | P47: =AVERAGE(N47:O47) -> 6.55 | Q47: 2 | R47: 47 | S47: 36 | T47: =AVERAGE(R47:S47) -> 41.5 | U47: 4 | W47: 19
A48: Sidmouth Primary | B48: 4.4 | C48: 4.5 | D48: =AVERAGE(B48:C48) -> 4.45 | E48: 20 | F48: 1.6 | G48: 1.6 | H48: =AVERAGE(F48:G48) -> 1.6 | I48: 11 | J48: 4.63 | K48: 4.66 | L48: =AVERAGE(J48:K48) -> 4.645 | M48: 3 | N48: 5.9 | O48: 6.3 | P48: =AVERAGE(N48:O48) -> 6.1 | Q48: 4 | R48: 32 | S48: 25 | T48: =AVERAGE(R48:S48) -> 28.5 | U48: 13 | W48: 51
A49: Sidmouth Primary | B49: 4.2 | C49: 4.4 | D49: =AVERAGE(B49:C49) -> 4.3 | E49: 21 | F49: 1.5 | G49: 1.45 | H49: =AVERAGE(F49:G49) -> 1.475 | I49: 17 | J49: 3.74 | K49: 4.1 | L49: =AVERAGE(J49:K49) -> 3.92 | M49: 12 | N49: 4.7 | O49: 4.2 | P49: =AVERAGE(N49:O49) -> 4.45 | Q49: 15 | R49: 31 | S49: 25 | T49: =AVERAGE(R49:S49) -> 28 | U49: 14 | W49: 79 | X49: =SUM(W47:W49) -> 149
A50: St Charles Primary | B50: 9.2 | C50: 8.5 | D50: =AVERAGE(B50:C50) -> 8.85 | E50: 6 | F50: 1.6 | G50: 1.9 | H50: =AVERAGE(F50:G50) -> 1.75 | I50: 6 | J50: 4.4 | K50: 4.32 | L50: =AVERAGE(J50:K50) -> 4.36 | M50: 6 | N50: 6.6 | O50: 6.5 | P50: =AVERAGE(N50:O50) -> 6.55 | Q50: 2 | R50: 39 | S50: 36 | T50: =AVERAGE(R50:S50) -> 37.5 | U50: 7 | W50: 27
A51: St Charles Primary | B51: 7.4 | C51: 8.21 | D51: =AVERAGE(B51:C51) -> 7.805 | E51: 10 | F51: 1.4 | G51: 1.55 | H51: =AVERAGE(F51:G51) -> 1.475 | I51: 17 | J51: 4 | K51: 4.29 | L51: =AVERAGE(J51:K51) -> 4.145 | M51: 9 | N51: 5.3 | O51: 5.5 | P51: =AVERAGE(N51:O51) -> 5.4 | Q51: 9 | R51: 35 | S51: 28 | T51: =AVERAGE(R51:S51) -> 31.5 | U51: 11 | W51: 56
A52: St Charles Primary | B52: 0.7 | C52: 7.1 | D52: =AVERAGE(B52:C52) -> 3.9 | E52: 24 | F52: 1.3 | G52: 1.5 | H52: =AVERAGE(F52:G52) -> 1.4 | I52: 19 | J52: 3.8 | K52: 4.3 | L52: =AVERAGE(J52:K52) -> 4.05 | M52: 11 | N52: 5.2 | O52: 4.8 | P52: =AVERAGE(N52:O52) -> 5 | Q52: 10 | R52: 32 | S52: 29 | T52: =AVERAGE(R52:S52) -> 30.5 | U52: 12 | W52: 76 | X52: =SUM(W50:W52) -> 159
A53: St Nicholas Primary | B53: 10.1 | C53: 6.5 | D53: =AVERAGE(B53:C53) -> 8.3 | E53: 8 | F53: 1.6 | G53: 1.5 | H53: =AVERAGE(F53:G53) -> 1.55 | I53: 13 | J53: 4.1 | K53: 4 | L53: =AVERAGE(J53:K53) -> 4.05 | M53: 11 | N53: 5.4 | O53: 5.5 | P53: =AVERAGE(N53:O53) -> 5.45 | Q53: 8 | R53: 32 | S53: 21 | T53: =AVERAGE(R53:S53) -> 26.5 | U53: 15 | W53: 55
A54: St Nicholas Primary | B54: 6.61 | C54: 7.12 | D54: =AVERAGE(B54:C54) -> 6.865 | E54: 15 | F54: 1.45 | G54: 1.57 | H54: =AVERAGE(F54:G54) -> 1.51 | I54: 15 | J54: 4.04 | K54: 3.5 | L54: =AVERAGE(J54:K54) -> 3.77 | M54: 16 | N54: 4.2 | O54: 4.7 | P54: =AVERAGE(N54:O54) -> 4.45 | Q54: 15 | R54: 29 | S54: 22 | T54: =AVERAGE(R54:S54) -> 25.5 | U54: 16 | W54: 77
A55: St Nicholas Primary | B55: 5.8 | C55: 5.7 | D55: =AVERAGE(B55:C55) -> 5.75 | E55: 16 | F55: 1.5 | G55: 1.4 | H55: =AVERAGE(F55:G55) -> 1.45 | I55: 18 | J55: 3.6 | K55: 3.72 | L55: =AVERAGE(J55:K55) -> 3.66 | M55: 18 | N55: 4.1 | O55: 3.9 | P55: =AVERAGE(N55:O55) -> 4 | Q55: 17 | R55: 22 | S55: 0 | T55: =AVERAGE(R55:S55) -> 11 | U55: 20 | W55: 89 | X55: =SUM(W53:W55) -> 221
A56: Woodlands Primary | B56: 13.5 | C56: 13 | D56: =AVERAGE(B56:C56) -> 13.25 | E56: 1 | F56: 1.7 | G56: 1.7 | H56: =AVERAGE(F56:G56) -> 1.7 | I56: 8 | J56: 4.32 | K56: 4.63 | L56: =AVERAGE(J56:K56) -> 4.475 | M56: 4 | N56: 5.9 | O56: 5.8 | P56: =AVERAGE(N56:O56) -> 5.85 | Q56: 5 | R56: 45 | S56: 35 | T56: =AVERAGE(R56:S56) -> 40 | U56: 5 | W56: 23
A57: Woodlands Primary | B57: 10.49 | C57: 10.51 | D57: =AVERAGE(B57:C57) -> 10.5 | E57: 3 | F57: 1.6 | G57: 1.55 | H57: =AVERAGE(F57:G57) -> 1.575 | I57: 12 | J57: 4 | K57: 3.7 | L57: =AVERAGE(J57:K57) -> 3.85 | M57: 15 | N57: 5.9 | O57: 5.3 | P57: =AVERAGE(N57:O57) -> 5.6 | Q57: 7 | R57: 42 | S57: 34 | T57: =AVERAGE(R57:S57) -> 38 | U57: 7 | W57: 44
A58: Woodlands Primary | B58: 6.9 | C58: 8 | D58: =AVERAGE(B58:C58) -> 7.45 | E58: 13 | F58: 1.45 | G58: 1.55 | H58: =AVERAGE(F58:G58) -> 1.5 | I58: 16 | J58: 3.09 | K58: 2.39 | L58: =AVERAGE(J58:K58) -> 2.74 | M58: 21 | N58: 3.9 | O58: 5.2 | P58: =AVERAGE(N58:O58) -> 4.55 | Q58: 13 | R58: 33 | S58: 25 | T58: =AVERAGE(R58:S58) -> 29 | U58: 13 | W58: 76 | X58: =SUM(W56:W58) -> 143

Sheet Y56 Track
A1: Year 5/6 Track Results
A2: Girls
B3: 1+1 Lap | E3: 2+2 Lap | H3: 6 Lap Paarlauf | K3: 4x1 Relay | O3: School Total Score
A4: School | B4: Time | C4: Pos | D4: Score | E4: Time | F4: Pos | G4: Score | H4: Time | I4: Pos | J4: Score | K4: Time | L4: Pos | M4: Score
A5: Christopher Pickering | B5: 27.48 | C5: 1 | D5: =C5*6 -> 6 | E5: 54.25 | F5: 1 | G5: =F5*6 -> 6 | H5: 85.73 | I5: 2 | J5: =I5*6 -> 12 | K5: 69.29 | L5: 8 | M5: =L5*6 -> 48 | O5: =SUM(D5,G5,J5,M5) -> 72
A6: Clifton Primary | B6: 28.6 | C6: 3 | D6: =C6*6 -> 18 | E6: 58.2 | F6: 5 | G6: =F6*6 -> 30 | H6: 89.76 | I6: 4 | J6: =I6*6 -> 24 | K6: 57.02 | L6: 3 | M6: =L6*6 -> 18 | O6: =SUM(D6,G6,J6,M6) -> 90
A7: Ings | B7: 28.18 | C7: 2 | D7: 12 | E7: 57.21 | F7: 4 | G7: 24 | H7: 83.03 | I7: 1 | J7: 6 | K7: 55.92 | L7: 1 | M7: 6 | O7: 48
A8: Neasden | B8: 30.45 | C8: 7 | D8: 42 | E8: 57.21 | F8: 4 | G8: 24 | H8: 89.76 | I8: 4 | J8: 24 | K8: 60.71 | L8: 6 | M8: 36 | O8: 126
A9: Sidmouth | B9: 28.71 | C9: 4 | D9: 24 | E9: 56.25 | F9: 2 | G9: 12 | H9: 87.61 | I9: 3 | J9: 18 | K9: 59.73 | L9: 5 | M9: 30 | O9: 84
A10: St Charles | B10: 30.05 | C10: 5 | D10: 30 | E10: 55.76 | F10: 6 | G10: 36 | H10: 91.59 | I10: 6 | J10: 36 | K10: 56.91 | L10: 2 | M10: 12 | O10: 114
A11: St Nicholas | B11: 28.71 | C11: 4 | D11: 24 | E11: 65.11 | F11: 3 | G11: 18 | H11: 101.48 | I11: 7 | J11: 42 | K11: 58.27 | L11: 4 | M11: 24 | O11: =SUM(D11,G11,J11,M11) -> 108
A12: Woodlands | B12: 30.32 | C12: 6 | D12: 36 | E12: 56.25 | F12: 3 | G12: 18 | H12: 90.11 | I12: 5 | J12: 30 | K12: 61.26 | L12: 7 | M12: 42 | O12: 126
A14: Year 5/6 Track Results
A15: Boys
B16: 1+1 Lap | E16: 2+2 Lap | H16: 6 Lap Paarlauf | K16: 4x1 Relay
A17: School | B17: Time | C17: Pos | D17: Score | E17: Time | F17: Pos | G17: Score | H17: Time | I17: Pos | J17: Score | K17: Time | L17: Pos | M17: Score
A18: Christopher Pickering | B18: 25.8 | C18: 3 | D18: =C18*6 -> 18 | E18: 55.51 | F18: 6 | G18: =F18*6 -> 36 | H18: 84.78 | I18: 2 | J18: =I18*6 -> 12 | K18: 53.8 | L18: 3 | M18: =L18*6 -> 18 | O18: 84
A19: Clifton Primary | B19: 27.76 | C19: 5 | D19: =C19*6 -> 30 | E19: 61.2 | F19: 8 | G19: =F19*6 -> 48 | H19: 107.17 | I19: 8 | J19: =I19*6 -> 48 | K19: 57.38 | L19: 7 | M19: =L19*6 -> 42 | O19: 168
A20: Ings | B20: 28.04 | C20: 6 | D20: 36 | E20: 52.6 | F20: 2 | G20: 12 | H20: 85.52 | I20: 3 | J20: 18 | K20: 55.01 | L20: 4 | M20: 24 | O20: 90
A21: Neasden | B21: 25.8 | C21: 3 | D21: 18 | E21: 51.78 | F21: 1 | G21: 6 | H21: 86.21 | I21: 4 | J21: 24 | K21: 52.15 | L21: 1 | M21: 6 | O21: 54
A22: Sidmouth | B22: 25 | C22: 1 | D22: 6 | E22: 52.9 | F22: 3 | G22: 18 | H22: 81.89 | I22: 1 | J22: 6 | K22: 52.82 | L22: 2 | M22: 12 | O22: 42
A23: St Charles | B23: 25.57 | C23: 2 | D23: 12 | E23: 54.97 | F23: 4 | G23: 24 | H23: 90.77 | I23: 5 | J23: 30 | K23: 55.1 | L23: 5 | M23: 30 | O23: 96
A24: St Nicholas | B24: 27.52 | C24: 4 | D24: 24 | E24: 61 | F24: 7 | G24: 42 | H24: 94.06 | I24: 6 | J24: 36 | K24: 65.73 | L24: 8 | M24: 48 | O24: =SUM(D24,G24,J24,M24) -> 150
A25: Woodlands | B25: 31.66 | C25: 7 | D25: 42 | E25: 55.37 | F25: 5 | G25: 30 | H25: 105.59 | I25: 7 | J25: 42 | K25: 56.44 | L25: 6 | M25: 36 | O25: 150

Sheet Y56Girls Field (hidden)
A1: Hull School Games SportsHall Athletics Qualifier 3 Results
A2: Year 5/6 Girls Field
B3: Javelin | F3: Standing Long Jump | J3: Standing Triple Jump | N3: Chest Push | R3: Speed Bouce | W3: School Total Score
A4: School | B4: Attempt 1 | C4: Attempt 2 | D4: Average | E4: Score | F4: Attempt 1 | G4: Attempt 2 | H4: Average | I4: Score | J4: Attempt 1 | K4: Attempt 2 | L4: Average | M4: Score | N4: Attempt 1 | O4: Attempt 2 | P4: Average | Q4: Score | R4: Attempt 1 | S4: Attempt 2 | T4: Average | U4: Score
A5: Christopher Pickering | B5: 13.04 | C5: 12.1 | D5: =AVERAGE(B5:C5) -> 12.57 | E5: 2 | F5: 1.8 | G5: 1.9 | H5: =AVERAGE(F5:G5) -> 1.85 | I5: 4 | J5: 4.01 | K5: 4.33 | L5: =AVERAGE(J5:K5) -> 4.17 | M5: 8 | N5: 5.9 | O5: 5.4 | P5: =AVERAGE(N5:O5) -> 5.65 | Q5: 6 | R5: 50 | S5: 50 | T5: =AVERAGE(R5:S5) -> 50 | U5: 1 | W5: =SUM(E5,I5,M5,Q5,U5) -> 21
A6: Christopher Pickering | B6: 9 | C6: 10 | D6: =AVERAGE(B6:C6) -> 9.5 | E6: 5 | F6: 1.72 | G6: 1.8 | H6: =AVERAGE(F6:G6) -> 1.76 | I6: 5 | J6: 3.44 | K6: 4.32 | L6: =AVERAGE(J6:K6) -> 3.88 | M6: 14 | N6: 4.7 | O6: 5.2 | P6: =AVERAGE(N6:O6) -> 4.95 | Q6: 11 | R6: 48 | S6: 48 | T6: =AVERAGE(R6:S6) -> 48 | U6: 2 | W6: =SUM(E6,I6,M6,Q6,U6) -> 37
A7: Christopher Pickering | B7: 7.5 | C7: 7.9 | D7: =AVERAGE(B7:C7) -> 7.7 | E7: 12 | F7: 1.64 | G7: 1.72 | H7: =AVERAGE(F7:G7) -> 1.68 | I7: 9 | J7: 3.52 | K7: 3.82 | L7: =AVERAGE(J7:K7) -> 3.67 | M7: 17 | N7: 4.3 | O7: 4.7 | P7: =AVERAGE(N7:O7) -> 4.5 | Q7: 14 | R7: 46 | S7: 46 | T7: =AVERAGE(R7:S7) -> 46 | U7: 3 | W7: 55 | X7: =SUM(W5:W7) -> 113
A8: Clifton Primary | B8: 9.82 | C8: 10.5 | D8: =AVERAGE(B8:C8) -> 10.16 | E8: 4 | F8: 1.8 | G8: 1.9 | H8: =AVERAGE(F8:G8) -> 1.85 | I8: 4 | J8: 4.13 | K8: 4.74 | L8: =AVERAGE(J8:K8) -> 4.435 | M8: 5 | N8: 4.3 | O8: 4.6 | P8: =AVERAGE(N8:O8) -> 4.45 | Q8: 15 | R8: 37 | S8: 28 | T8: =AVERAGE(R8:S8) -> 32.5 | U8: 10 | W8: 38
A9: Clifton Primary | B9: 6.4 | C9: 4.4 | D9: =AVERAGE(B9:C9) -> 5.4 | E9: 17 | F9: 1.8 | G9: 1.7 | H9: =AVERAGE(F9:G9) -> 1.75 | I9: 6 | J9: 4.35 | K9: 4.2 | L9: =AVERAGE(J9:K9) -> 4.275 | M9: 7 | N9: 3.9 | O9: 4.4 | P9: =AVERAGE(N9:O9) -> 4.15 | Q9: 16 | R9: 30 | S9: 28 | T9: =AVERAGE(R9:S9) -> 29 | U9: 13 | W9: 59
A10: Clifton Primary | B10: 4.9 | C10: 5.7 | D10: =AVERAGE(B10:C10) -> 5.3 | E10: 18 | F10: 1.5 | G10: 1.3 | H10: =AVERAGE(F10:G10) -> 1.4 | I10: 19 | J10: 3.8 | K10: 4.5 | L10: =AVERAGE(J10:K10) -> 4.15 | M10: 9 | N10: 3.1 | O10: 2.9 | P10: =AVERAGE(N10:O10) -> 3 | Q10: 18 | R10: 15 | S10: 16 | T10: =AVERAGE(R10:S10) -> 15.5 | U10: 19 | W10: 83 | X10: =SUM(W8:W10) -> 180
A11: Ings Primary | B11: 9.4 | C11: 7.55 | D11: =AVERAGE(B11:C11) -> 8.475 | E11: 7 | F11: 1.95 | G11: 1.94 | H11: =AVERAGE(F11:G11) -> 1.945 | I11: 2 | J11: 4.79 | K11: 5 | L11: =AVERAGE(J11:K11) -> 4.895 | M11: 2 | N11: 6.6 | O11: 5.9 | P11: =AVERAGE(N11:O11) -> 6.25 | Q11: 3 | R11: 42 | S11: 32 | T11: =AVERAGE(R11:S11) -> 37 | U11: 8 | W11: 22
A12: Ings Primary | B12: 4.5 | C12: 5.7 | D12: =AVERAGE(B12:C12) -> 5.1 | E12: 19 | F12: 1.88 | G12: 1.92 | H12: =AVERAGE(F12:G12) -> 1.9 | I12: 3 | J12: 3.7 | K12: 4.1 | L12: =AVERAGE(J12:K12) -> 3.9 | M12: 13 | N12: 5.5 | O12: 5.4 | P12: =AVERAGE(N12:O12) -> 5.45 | Q12: 8 | R12: 41 | S12: 27 | T12: =AVERAGE(R12:S12) -> 34 | U12: 9 | W12: 52
A13: Ings Primary | B13: 4.1 | C13: 4.4 | D13: =AVERAGE(B13:C13) -> 4.25 | E13: 22 | F13: 1.7 | G13: 1.64 | H13: =AVERAGE(F13:G13) -> 1.67 | I13: 10 | J13: 3.05 | K13: 2.9 | L13: =AVERAGE(J13:K13) -> 2.975 | M13: 20 | N13: 5.1 | O13: 4.4 | P13: =AVERAGE(N13:O13) -> 4.75 | Q13: 12 | R13: 29 | S13: 18 | T13: =AVERAGE(R13:S13) -> 23.5 | U13: 17 | W13: 81 | X13: =SUM(W11:W13) -> 155
A14: Neasden Primary | B14: 9.45 | C14: 6.73 | D14: =AVERAGE(B14:C14) -> 8.09 | E14: 9 | F14: 1.65 | G14: 1.8 | H14: =AVERAGE(F14:G14) -> 1.725 | I14: 7 | J14: 4.31 | K14: 3.91 | L14: =AVERAGE(J14:K14) -> 4.11 | M14: 10 | N14: 7.2 | O14: 6.2 | P14: =AVERAGE(N14:O14) -> 6.7 | Q14: 1 | R14: 40 | S14: 38 | T14: =AVERAGE(R14:S14) -> 39 | U14: 6 | W14: 33
A15: Neasden Primary | B15: 9.2 | C15: 5 | D15: =AVERAGE(B15:C15) -> 7.1 | E15: 14 | F15: 1.66 | G15: 1.7 | H15: =AVERAGE(F15:G15) -> 1.68 | I15: 9 | J15: 3.65 | K15: 4.1 | L15: =AVERAGE(J15:K15) -> 3.875 | M15: 14 | N15: 5.4 | O15: 5.8 | P15: =AVERAGE(N15:O15) -> 5.6 | Q15: 7 | R15: 37 | S15: 29 | T15: =AVERAGE(R15:S15) -> 33 | U15: 10 | W15: 54
A16: Neasden Primary | B16: 3.5 | C16: 4.9 | D16: =AVERAGE(B16:C16) -> 4.2 | E16: 23 | F16: 1.5 | G16: 1.55 | H16: =AVERAGE(F16:G16) -> 1.525 | I16: 14 | J16: 3.44 | K16: 3.64 | L16: =AVERAGE(J16:K16) -> 3.54 | M16: 19 | N16: 5.1 | O16: 5.7 | P16: =AVERAGE(N16:O16) -> 5.4 | Q16: 9 | R16: 30 | S16: 16 | T16: =AVERAGE(R16:S16) -> 23 | U16: 18 | W16: 83 | X16: =SUM(W14:W16) -> 170
A17: Sidmouth Primary | B17: 8 | C17: 7.5 | D17: =AVERAGE(B17:C17) -> 7.75 | E17: 11 | F17: 2 | G17: 2.1 | H17: =AVERAGE(F17:G17) -> 2.05 | I17: 1 | J17: 4.79 | K17: 5.1 | L17: =AVERAGE(J17:K17) -> 4.945 | M17: 1 | N17: 6.5 | O17: 6.6 | P17: =AVERAGE(N17:O17) -> 6.55 | Q17: 2 | R17: 47 | S17: 36 | T17: =AVERAGE(R17:S17) -> 41.5 | U17: 4 | W17: 19
A18: Sidmouth Primary | B18: 4.4 | C18: 4.5 | D18: =AVERAGE(B18:C18) -> 4.45 | E18: 20 | F18: 1.6 | G18: 1.6 | H18: =AVERAGE(F18:G18) -> 1.6 | I18: 11 | J18: 4.63 | K18: 4.66 | L18: =AVERAGE(J18:K18) -> 4.645 | M18: 3 | N18: 5.9 | O18: 6.3 | P18: =AVERAGE(N18:O18) -> 6.1 | Q18: 4 | R18: 32 | S18: 25 | T18: =AVERAGE(R18:S18) -> 28.5 | U18: 13 | W18: 51
A19: Sidmouth Primary | B19: 4.2 | C19: 4.4 | D19: =AVERAGE(B19:C19) -> 4.3 | E19: 21 | F19: 1.5 | G19: 1.45 | H19: =AVERAGE(F19:G19) -> 1.475 | I19: 17 | J19: 3.74 | K19: 4.1 | L19: =AVERAGE(J19:K19) -> 3.92 | M19: 12 | N19: 4.7 | O19: 4.2 | P19: =AVERAGE(N19:O19) -> 4.45 | Q19: 15 | R19: 31 | S19: 25 | T19: =AVERAGE(R19:S19) -> 28 | U19: 14 | W19: 79 | X19: =SUM(W17:W19) -> 149
A20: St Charles Primary | B20: 9.2 | C20: 8.5 | D20: =AVERAGE(B20:C20) -> 8.85 | E20: 6 | F20: 1.6 | G20: 1.9 | H20: =AVERAGE(F20:G20) -> 1.75 | I20: 6 | J20: 4.4 | K20: 4.32 | L20: =AVERAGE(J20:K20) -> 4.36 | M20: 6 | N20: 6.6 | O20: 6.5 | P20: =AVERAGE(N20:O20) -> 6.55 | Q20: 2 | R20: 39 | S20: 36 | T20: =AVERAGE(R20:S20) -> 37.5 | U20: 7 | W20: 27
A21: St Charles Primary | B21: 7.4 | C21: 8.21 | D21: =AVERAGE(B21:C21) -> 7.805 | E21: 10 | F21: 1.4 | G21: 1.55 | H21: =AVERAGE(F21:G21) -> 1.475 | I21: 17 | J21: 4 | K21: 4.29 | L21: =AVERAGE(J21:K21) -> 4.145 | M21: 9 | N21: 5.3 | O21: 5.5 | P21: =AVERAGE(N21:O21) -> 5.4 | Q21: 9 | R21: 35 | S21: 28 | T21: =AVERAGE(R21:S21) -> 31.5 | U21: 11 | W21: 56
A22: St Charles Primary | B22: 0.7 | C22: 7.1 | D22: =AVERAGE(B22:C22) -> 3.9 | E22: 24 | F22: 1.3 | G22: 1.5 | H22: =AVERAGE(F22:G22) -> 1.4 | I22: 19 | J22: 3.8 | K22: 4.3 | L22: =AVERAGE(J22:K22) -> 4.05 | M22: 11 | N22: 5.2 | O22: 4.8 | P22: =AVERAGE(N22:O22) -> 5 | Q22: 10 | R22: 32 | S22: 29 | T22: =AVERAGE(R22:S22) -> 30.5 | U22: 12 | W22: 76 | X22: =SUM(W20:W22) -> 159
A23: St Nicholas Primary | B23: 10.1 | C23: 6.5 | D23: =AVERAGE(B23:C23) -> 8.3 | E23: 8 | F23: 1.6 | G23: 1.5 | H23: =AVERAGE(F23:G23) -> 1.55 | I23: 13 | J23: 4.1 | K23: 4 | L23: =AVERAGE(J23:K23) -> 4.05 | M23: 11 | N23: 5.4 | O23: 5.5 | P23: =AVERAGE(N23:O23) -> 5.45 | Q23: 8 | R23: 32 | S23: 21 | T23: =AVERAGE(R23:S23) -> 26.5 | U23: 15 | W23: 55
A24: St Nicholas Primary | B24: 6.61 | C24: 7.12 | D24: =AVERAGE(B24:C24) -> 6.865 | E24: 15 | F24: 1.45 | G24: 1.57 | H24: =AVERAGE(F24:G24) -> 1.51 | I24: 15 | J24: 4.04 | K24: 3.5 | L24: =AVERAGE(J24:K24) -> 3.77 | M24: 16 | N24: 4.2 | O24: 4.7 | P24: =AVERAGE(N24:O24) -> 4.45 | Q24: 15 | R24: 29 | S24: 22 | T24: =AVERAGE(R24:S24) -> 25.5 | U24: 16 | W24: 77
A25: St Nicholas Primary | B25: 5.8 | C25: 5.7 | D25: =AVERAGE(B25:C25) -> 5.75 | E25: 16 | F25: 1.5 | G25: 1.4 | H25: =AVERAGE(F25:G25) -> 1.45 | I25: 18 | J25: 3.6 | K25: 3.72 | L25: =AVERAGE(J25:K25) -> 3.66 | M25: 18 | N25: 4.1 | O25: 3.9 | P25: =AVERAGE(N25:O25) -> 4 | Q25: 17 | R25: 22 | S25: 0 | T25: =AVERAGE(R25:S25) -> 11 | U25: 20 | W25: 89 | X25: =SUM(W23:W25) -> 221
A26: Woodlands Primary | B26: 13.5 | C26: 13 | D26: =AVERAGE(B26:C26) -> 13.25 | E26: 1 | F26: 1.7 | G26: 1.7 | H26: =AVERAGE(F26:G26) -> 1.7 | I26: 8 | J26: 4.32 | K26: 4.63 | L26: =AVERAGE(J26:K26) -> 4.475 | M26: 4 | N26: 5.9 | O26: 5.8 | P26: =AVERAGE(N26:O26) -> 5.85 | Q26: 5 | R26: 45 | S26: 35 | T26: =AVERAGE(R26:S26) -> 40 | U26: 5 | W26: 23
A27: Woodlands Primary | B27: 10.49 | C27: 10.51 | D27: =AVERAGE(B27:C27) -> 10.5 | E27: 3 | F27: 1.6 | G27: 1.55 | H27: =AVERAGE(F27:G27) -> 1.575 | I27: 12 | J27: 4 | K27: 3.7 | L27: =AVERAGE(J27:K27) -> 3.85 | M27: 15 | N27: 5.9 | O27: 5.3 | P27: =AVERAGE(N27:O27) -> 5.6 | Q27: 7 | R27: 42 | S27: 34 | T27: =AVERAGE(R27:S27) -> 38 | U27: 7 | W27: 44
A28: Woodlands Primary | B28: 6.9 | C28: 8 | D28: =AVERAGE(B28:C28) -> 7.45 | E28: 13 | F28: 1.45 | G28: 1.55 | H28: =AVERAGE(F28:G28) -> 1.5 | I28: 16 | J28: 3.09 | K28: 2.39 | L28: =AVERAGE(J28:K28) -> 2.74 | M28: 21 | N28: 3.9 | O28: 5.2 | P28: =AVERAGE(N28:O28) -> 4.55 | Q28: 13 | R28: 33 | S28: 25 | T28: =AVERAGE(R28:S28) -> 29 | U28: 13 | W28: 76 | X28: =SUM(W26:W28) -> 143
